Workbook

Sheet notes (hidden)
H2: =SUM(H3:H8) -> 0
C3: 600 | D3: 24 | E3: 600 | F3: 1000 | G3: =IF(Form!$D$4=D3,1,0) -> 0 | H3: =IF(G3=1,IF(OR(E3>Form!M$5,F3<Form!M$5),1,0),0) -> 0
C4: 800 | D4: 30 | E4: 800 | F4: 1200 | G4: =IF(Form!$D$4=D4,1,0) -> 0 | H4: =IF(G4=1,IF(OR(E4>Form!M$5,F4<Form!M$5),1,0),0) -> 0
C5: 1000 | D5: 36 | E5: 1000 | F5: 1400 | G5: =IF(Form!$D$4=D5,1,0) -> 0 | H5: =IF(G5=1,IF(OR(E5>Form!M$5,F5<Form!M$5),1,0),0) -> 0
C6: 1200 | D6: 42 | E6: 1200 | F6: 1600 | G6: =IF(Form!$D$4=D6,1,0) -> 0 | H6: =IF(G6=1,IF(OR(E6>Form!M$5,F6<Form!M$5),1,0),0) -> 0
C7: 1400 | D7: 48 | E7: 1400 | F7: 1800 | G7: =IF(Form!$D$4=D7,1,0) -> 0 | H7: =IF(G7=1,IF(OR(E7>Form!M$5,F7<Form!M$5),1,0),0) -> 0
C8: 1600 | D8: 60 | E8: 1600 | F8: 2000 | G8: =IF(Form!$D$4=D8,1,0) -> 0 | H8: =IF(G8=1,IF(OR(E8>Form!M$5,F8<Form!M$5),1,0),0) -> 0
C9: 1800
C10: 2000
D13: Total
B14: =Form!M5+Form!M6 -> 0 | E14: =E31 -> 0 | F14: =F31 -> 0 | G14: 0 | H14: 0 | I14: 0 | J14: 0 | K14: 0 | L14: =SUM(E14:K14) -> 0 | P14: 58
E15: =Form!C27 -> 65 | F15: =Form!E27 -> 75 | G15: =Form!G27 -> 80 | H15: =Form!I27 -> 85 | I15: =Form!K27 -> 90 | J15: =Form!M27 -> 95 | K15: =Form!O27 -> 105
A16: =C16+D16 -> 0 | B16: =P16 -> 0 | C16: =Form!A31 -> 0 | D16: =Form!B31 -> 0 | E16: =Form!C31 -> 0 | F16: =Form!E31 -> 0 | G16: =Form!G31 -> 0 | H16: =Form!I31 -> 0 | I16: =Form!K31 -> 0 | J16: =Form!M31 -> 0 | K16: =Form!O31 -> 0 | L16: =Form!$M$5+Form!M$6 -> 0 | M16: =IF(C16+D16=Form!M$5+Form!M$6,1,0) -> 1 | N16: =IF(A16<L16,1,0) -> 0 | O16: =IF(A16>L16,2,0) -> 0 | P16: =IF(AND(N16=1,N17=0),1,0)+IF(AND(O15=0,O16=2),2,0) -> 0
A17: =C17+D17 -> 0 | B17: =P17 -> 0 | C17: =C16 -> 0 | D17: =Form!B32 -> 0 | E17: =Form!C32 -> 0 | F17: =Form!E32 -> 0 | G17: =Form!G32 -> 0 | H17: =Form!I32 -> 0 | I17: =Form!K32 -> 0 | J17: =Form!M32 -> 0 | K17: =Form!O32 -> 0 | L17: =Form!$M$5+Form!M$6 -> 0 | M17: =IF(C17+D17=Form!M$5+Form!M$6,1,0) -> 1 | N17: =IF(A17<L17,1,0) -> 0 | O17: =IF(A17>L17,2,0) -> 0 | P17: =IF(AND(N17=1,N18=0),1,0)+IF(AND(O16=0,O17=2),2,0) -> 0
A18: 0 | B18: 0 | C18: =C17 -> 0 | D18: =Form!B33 -> 0 | E18: =Form!C33 -> 0 | F18: =Form!E33 -> 0 | G18: =Form!G33 -> 0 | H18: =Form!I33 -> 0 | I18: =Form!K33 -> 0 | J18: =Form!M33 -> 0 | K18: =Form!O33 -> 0 | L18: =Form!$M$5+Form!M$6 -> 0 | M18: =IF(C18+D18=Form!M$5+Form!M$6,1,0) -> 1 | N18: 0 | O18: =IF(A18>L18,2,0) -> 0 | P18: =IF(AND(N18=1,N19=0),1,0)+IF(AND(O17=0,O18=2),2,0) -> 0
A19: 0 | B19: 0 | C19: =C18 -> 0 | D19: =Form!B34 -> 0 | E19: =Form!C34 -> 0 | F19: =Form!E34 -> 0 | G19: =Form!G34 -> 0 | H19: =Form!I34 -> 0 | I19: =Form!K34 -> 0 | J19: =Form!M34 -> 0 | K19: =Form!O34 -> 0 | L19: =Form!$M$5+Form!M$6 -> 0 | M19: =IF(C19+D19=Form!M$5+Form!M$6,1,0) -> 1 | N19: 0 | O19: =IF(A19>L19,2,0) -> 0 | P19: =IF(AND(N19=1,N20=0),1,0)+IF(AND(O18=0,O19=2),2,0) -> 0
A20: 0 | B20: 0 | C20: =Form!A35 -> 0 | D20: =Form!B35 -> 0 | E20: =Form!C35 -> 0 | F20: =Form!E35 -> 0 | G20: =Form!G35 -> 0 | H20: =Form!I35 -> 0 | I20: =Form!K35 -> 0 | J20: =Form!M35 -> 0 | K20: =Form!O35 -> 0 | L20: =Form!$M$5+Form!M$6 -> 0 | M20: =IF(C20+D20=Form!M$5+Form!M$6,1,0) -> 1 | N20: 0 | O20: =IF(A20>L20,2,0) -> 0 | P20: =IF(AND(N20=1,N21=0),1,0)+IF(AND(O19=0,O20=2),2,0) -> 0
A21: 0 | B21: 0 | C21: =C20 -> 0 | D21: =Form!B36 -> 0 | E21: =Form!C36 -> 0 | F21: =Form!E36 -> 0 | G21: =Form!G36 -> 0 | H21: =Form!I36 -> 0 | I21: =Form!K36 -> 0 | J21: =Form!M36 -> 0 | K21: =Form!O36 -> 0 | L21: =Form!$M$5+Form!M$6 -> 0 | M21: =IF(C21+D21=Form!M$5+Form!M$6,1,0) -> 1 | N21: 0 | O21: =IF(A21>L21,2,0) -> 0 | P21: =IF(AND(N21=1,N22=0),1,0)+IF(AND(O20=0,O21=2),2,0) -> 0
A22: 0 | B22: 0 | C22: =C21 -> 0 | D22: =Form!B37 -> 0 | E22: =Form!C37 -> 0 | F22: =Form!E37 -> 0 | G22: =Form!G37 -> 0 | H22: =Form!I37 -> 0 | I22: =Form!K37 -> 0 | J22: =Form!M37 -> 0 | K22: =Form!O37 -> 0 | L22: =Form!$M$5+Form!M$6 -> 0 | M22: =IF(C22+D22=Form!M$5+Form!M$6,1,0) -> 1 | N22: 0 | O22: 0 | P22: 0
A23: 0 | B23: 0 | C23: =C22 -> 0 | D23: =Form!B38 -> 0 | E23: =Form!C38 -> 0 | F23: =Form!E38 -> 0 | G23: =Form!G38 -> 0 | H23: =Form!I38 -> 0 | I23: =Form!K38 -> 0 | J23: =Form!M38 -> 0 | K23: =Form!O38 -> 0 | L23: =Form!$M$5+Form!M$6 -> 0 | M23: =IF(C23+D23=Form!M$5+Form!M$6,1,0) -> 1 | N23: 0 | O23: 0 | P23: 0
A24: 0 | B24: 0 | C24: =Form!A39 -> 0 | D24: =Form!B39 -> 0 | E24: =Form!C39 -> 0 | F24: =Form!E39 -> 0 | G24: =Form!G39 -> 0 | H24: =Form!I39 -> 0 | I24: =Form!K39 -> 0 | J24: =Form!M39 -> 0 | K24: =Form!O39 -> 0 | L24: =Form!$M$5+Form!M$6 -> 0 | M24: =IF(C24+D24=Form!M$5+Form!M$6,1,0) -> 1 | N24: 0 | O24: 0 | P24: 0
A25: 0 | B25: 0 | C25: =C24 -> 0 | D25: =Form!B40 -> 0 | E25: =Form!C40 -> 0 | F25: =Form!E40 -> 0 | G25: =Form!G40 -> 0 | H25: =Form!I40 -> 0 | I25: =Form!K40 -> 0 | J25: =Form!M40 -> 0 | K25: =Form!O40 -> 0 | L25: =Form!$M$5+Form!M$6 -> 0 | M25: =IF(C25+D25=Form!M$5+Form!M$6,1,0) -> 1 | N25: 0 | O25: 0 | P25: 0
A26: 0 | B26: 0 | C26: =C25 -> 0 | D26: =Form!B41 -> 0 | E26: =Form!C41 -> 0 | F26: =Form!E41 -> 0 | G26: =Form!G41 -> 0 | H26: =Form!I41 -> 0 | I26: =Form!K41 -> 0 | J26: =Form!M41 -> 0 | K26: =Form!O41 -> 0 | L26: =Form!$M$5+Form!M$6 -> 0 | M26: =IF(C26+D26=Form!M$5+Form!M$6,1,0) -> 1 | N26: 0 | O26: 0 | P26: 0
A27: 0 | B27: 0 | C27: =C26 -> 0 | D27: =Form!B42 -> 0 | E27: =Form!C42 -> 0 | F27: =Form!E42 -> 0 | G27: =Form!G42 -> 0 | H27: =Form!I42 -> 0 | I27: =Form!K42 -> 0 | J27: =Form!M42 -> 0 | K27: =Form!O42 -> 0 | L27: =Form!$M$5+Form!M$6 -> 0 | M27: =IF(C27+D27=Form!M$5+Form!M$6,1,0) -> 1 | N27: 0 | O27: 0 | P27: 0
A28: 0 | B28: =SUM(B16:B27) -> 0
F29: =IF(AND(F15>Form!$M$4,E15<Form!$M$4),2,0) -> 0 | G29: =IF(AND(G15>Form!$M$4,F15<Form!$M$4),2,0) -> 0 | H29: =IF(AND(H15>Form!$M$4,G15<Form!$M$4),2,0) -> 0 | I29: =IF(AND(I15>Form!$M$4,H15<Form!$M$4),2,0) -> 0 | J29: =IF(AND(J15>Form!$M$4,I15<Form!$M$4),2,0) -> 0 | K29: =IF(AND(K15>Form!$M$4,J15<Form!$M$4),2,0) -> 0
C30: =HLOOKUP(1,E14:K15,2,FALSE) ->  | E30: =IF(F29=2,1,0) -> 0 | F30: =IF(G29=2,1,0) -> 0 | G30: 0 | H30: 0 | I30: 0 | J30: 0 | K30: 0
C31: =HLOOKUP(2,E14:K15,2,FALSE) ->  | E31: =SUM(E29:E30) -> 0 | F31: 0 | G31: 0 | H31: 0 | I31: 0 | J31: 0 | K31: 0
B32: =(VLOOKUP(1,B14:K27,3,FALSE)) ->  | C32: =IF(ISERROR(B32),0,B32) -> 0 | E32: =(C34-C35)/(C32-C33)*(Form!$M$6-C33)+C35 ->  | F32: =(C36-C37)/(C32-C33)*(Form!M6-C33)+C37 -> 
B33: =VLOOKUP(2,B14:K27,3,FALSE) ->  | C33: =IF(ISERROR(B33),0,B33) -> 0 | E33: =IF(AND(B28=0,L14=3),VLOOKUP(Form!$M$5+Form!$M$6,notes!A14:K27,MATCH(1,notes!A14:K14,FALSE),FALSE),0) -> 0 | F33: =IF(AND(B28=0,L14=3),VLOOKUP(Form!$M$5+Form!$M$6,notes!A14:K27,MATCH(2,notes!A14:K14,FALSE),FALSE),0) -> 0 | I33: exactly
B34: =VLOOKUP(1,B14:K27,MATCH(1,B14:K14,FALSE),FALSE) ->  | C34: =MIN(B34,B36) ->  | E34: =IF(ISERROR(E32),E33,E32) -> 0 | F34: =IF(ISERROR(F32),F33,F32) -> 0 | I34: x | J34: y | K34: err1 | L34: err2 | M34: err3 | N34: ans
B35: =VLOOKUP(2,B14:K27,MATCH(1,B14:K14,FALSE),FALSE) ->  | C35: =MAX(B35,B37) ->  | E35: =MIN(E34:F34) -> 0 | F35: =MAX(E34:F34) -> 0 | I35: y | J35: y | K35: =IF(ISERROR(VLOOKUP(Form!$M$5+Form!$M$6,notes!A15:K27,MATCH(Form!$M$4,notes!A15:K15,FALSE),FALSE)),0,VLOOKUP(Form!$M$5+Form!$M$6,notes!A15:K27,MATCH(Form!$M$4,notes!A15:K15,FALSE),FALSE)) -> 0 | N35: =SUM(K35:M35) -> 0
B36: =VLOOKUP(1,B14:K27,MATCH(2,B14:K14,FALSE),FALSE) ->  | C36: =MAX(B36,B34) ->  | E36: =(E35-F35)/(C31-C30)*(Form!$M$4-C30)+F35 ->  | I36: y | J36: n | N36: =SUM(K36:M36) -> 0
B37: =VLOOKUP(2,B14:K27,MATCH(2,B14:K14,FALSE),FALSE) ->  | C37: =MIN(B35,B37) ->  | I37: n | J37: n | K37: =IF(OR(E36>100000,E36<=0),0,E36) ->  | L37: =IF(K37<>0,0,MIN(E32:F32)) ->  | M37: =IF(AND(L37=0,K37=0),C34,0) ->  | N37: =SUM(K37:M37) -> 
N38: =IF(ISERROR(N37),N35,N37) -> 0
A41: sens | E41: =E58 -> 0 | F41: =F58 -> 0 | G41: 0 | H41: 0 | I41: 0 | J41: 0 | K41: 0 | L41: =SUM(E41:K41) -> 0
E42: =E15 -> 65 | F42: =F15 -> 75 | G42: 80 | H42: 85 | I42: 90 | J42: 95 | K42: 105
A43: =C43+D43 -> 0 | B43: =P43 -> 0 | C43: =C16 -> 0 | D43: =D16 -> 0 | E43: =Form!D31 -> 0 | F43: =Form!F31 -> 0 | G43: =Form!H31 -> 0 | H43: =Form!J31 -> 0 | I43: =Form!L31 -> 0 | J43: =Form!N31 -> 0 | K43: =Form!P31 -> 0 | L43: =Form!$M$5+Form!M$6 -> 0 | M43: =IF(C43+D43=Form!M$5+Form!M$6,1,0) -> 1 | N43: =IF(A43<L43,1,0) -> 0 | O43: =IF(A43>L43,2,0) -> 0 | P43: =IF(AND(N43=1,N44=0),1,0)+IF(AND(O42=0,O43=2),2,0) -> 0
A44: =C44+D44 -> 0 | B44: =P44 -> 0 | C44: =C17 -> 0 | D44: =D17 -> 0 | E44: =Form!D32 -> 0 | F44: =Form!F32 -> 0 | G44: =Form!H32 -> 0 | H44: =Form!J32 -> 0 | I44: =Form!L32 -> 0 | J44: =Form!N32 -> 0 | K44: =Form!P32 -> 0 | L44: =Form!$M$5+Form!M$6 -> 0 | M44: =IF(C44+D44=Form!M$5+Form!M$6,1,0) -> 1 | N44: =IF(A44<L44,1,0) -> 0 | O44: =IF(A44>L44,2,0) -> 0 | P44: =IF(AND(N44=1,N45=0),1,0)+IF(AND(O43=0,O44=2),2,0) -> 0
A45: =C45+D45 -> 0 | B45: 0 | C45: 0 | D45: 0 | E45: =Form!D33 -> 0 | F45: =Form!F33 -> 0 | G45: =Form!H33 -> 0 | H45: =Form!J33 -> 0 | I45: =Form!L33 -> 0 | J45: =Form!N33 -> 0 | K45: =Form!P33 -> 0 | L45: =Form!$M$5+Form!M$6 -> 0 | M45: =IF(C45+D45=Form!M$5+Form!M$6,1,0) -> 1 | N45: 0 | O45: =IF(A45>L45,2,0) -> 0 | P45: =IF(AND(N45=1,N46=0),1,0)+IF(AND(O44=0,O45=2),2,0) -> 0
A46: 0 | B46: 0 | C46: 0 | D46: 0 | E46: =Form!D34 -> 0 | F46: =Form!F34 -> 0 | G46: =Form!H34 -> 0 | H46: =Form!J34 -> 0 | I46: =Form!L34 -> 0 | J46: =Form!N34 -> 0 | K46: =Form!P34 -> 0 | L46: =Form!$M$5+Form!M$6 -> 0 | M46: =IF(C46+D46=Form!M$5+Form!M$6,1,0) -> 1 | N46: 0 | O46: =IF(A46>L46,2,0) -> 0 | P46: =IF(AND(N46=1,N47=0),1,0)+IF(AND(O45=0,O46=2),2,0) -> 0
A47: 0 | B47: 0 | C47: 0 | D47: 0 | E47: =Form!D35 -> 0 | F47: =Form!F35 -> 0 | G47: =Form!H35 -> 0 | H47: =Form!J35 -> 0 | I47: =Form!L35 -> 0 | J47: =Form!N35 -> 0 | K47: =Form!P35 -> 0 | L47: =Form!$M$5+Form!M$6 -> 0 | M47: =IF(C47+D47=Form!M$5+Form!M$6,1,0) -> 1 | N47: 0 | O47: =IF(A47>L47,2,0) -> 0 | P47: =IF(AND(N47=1,N48=0),1,0)+IF(AND(O46=0,O47=2),2,0) -> 0
A48: 0 | B48: 0 | C48: 0 | D48: 0 | E48: =Form!D36 -> 0 | F48: =Form!F36 -> 0 | G48: =Form!H36 -> 0 | H48: =Form!J36 -> 0 | I48: =Form!L36 -> 0 | J48: =Form!N36 -> 0 | K48: =Form!P36 -> 0 | L48: =Form!$M$5+Form!M$6 -> 0 | M48: =IF(C48+D48=Form!M$5+Form!M$6,1,0) -> 1 | N48: 0 | O48: =IF(A48>L48,2,0) -> 0 | P48: =IF(AND(N48=1,N49=0),1,0)+IF(AND(O47=0,O48=2),2,0) -> 0
A49: 0 | B49: 0 | C49: 0 | D49: 0 | E49: =Form!D37 -> 0 | F49: =Form!F37 -> 0 | G49: =Form!H37 -> 0 | H49: =Form!J37 -> 0 | I49: =Form!L37 -> 0 | J49: =Form!N37 -> 0 | K49: =Form!P37 -> 0 | L49: =Form!$M$5+Form!M$6 -> 0 | M49: =IF(C49+D49=Form!M$5+Form!M$6,1,0) -> 1 | N49: 0 | O49: 0 | P49: 0
A50: 0 | B50: 0 | C50: 0 | D50: 0 | E50: =Form!D38 -> 0 | F50: =Form!F38 -> 0 | G50: =Form!H38 -> 0 | H50: =Form!J38 -> 0 | I50: =Form!L38 -> 0 | J50: =Form!N38 -> 0 | K50: =Form!P38 -> 0 | L50: =Form!$M$5+Form!M$6 -> 0 | M50: =IF(C50+D50=Form!M$5+Form!M$6,1,0) -> 1 | N50: 0 | O50: 0 | P50: 0
A51: 0 | B51: 0 | C51: 0 | D51: 0 | E51: =Form!D39 -> 0 | F51: =Form!F39 -> 0 | G51: =Form!H39 -> 0 | H51: =Form!J39 -> 0 | I51: =Form!L39 -> 0 | J51: =Form!N39 -> 0 | K51: =Form!P39 -> 0 | L51: =Form!$M$5+Form!M$6 -> 0 | M51: =IF(C51+D51=Form!M$5+Form!M$6,1,0) -> 1 | N51: 0 | O51: 0 | P51: 0
A52: 0 | B52: 0 | C52: 0 | D52: 0 | E52: =Form!D40 -> 0 | F52: =Form!F40 -> 0 | G52: =Form!H40 -> 0 | H52: =Form!J40 -> 0 | I52: =Form!L40 -> 0 | J52: =Form!N40 -> 0 | K52: =Form!P40 -> 0 | L52: =Form!$M$5+Form!M$6 -> 0 | M52: =IF(C52+D52=Form!M$5+Form!M$6,1,0) -> 1 | N52: 0 | O52: 0 | P52: 0
A53: 0 | B53: 0 | C53: 0 | D53: 0 | E53: =Form!D41 -> 0 | F53: =Form!F41 -> 0 | G53: =Form!H41 -> 0 | H53: =Form!J41 -> 0 | I53: =Form!L41 -> 0 | J53: =Form!N41 -> 0 | K53: =Form!P41 -> 0 | L53: =Form!$M$5+Form!M$6 -> 0 | M53: =IF(C53+D53=Form!M$5+Form!M$6,1,0) -> 1 | N53: 0 | O53: 0 | P53: 0
A54: 0 | B54: 0 | C54: 0 | D54: 0 | E54: =Form!D42 -> 0 | F54: =Form!F42 -> 0 | G54: =Form!H42 -> 0 | H54: =Form!J42 -> 0 | I54: =Form!L42 -> 0 | J54: =Form!N42 -> 0 | K54: =Form!P42 -> 0 | L54: =Form!$M$5+Form!M$6 -> 0 | M54: =IF(C54+D54=Form!M$5+Form!M$6,1,0) -> 1 | N54: 0 | O54: 0 | P54: 0
A55: 0 | B55: =SUM(B43:B54) -> 0
F56: =IF(AND(F42>Form!$M$4,E42<Form!$M$4),2,0) -> 0 | G56: =IF(AND(G42>Form!$M$4,F42<Form!$M$4),2,0) -> 0 | H56: =IF(AND(H42>Form!$M$4,G42<Form!$M$4),2,0) -> 0 | I56: =IF(AND(I42>Form!$M$4,H42<Form!$M$4),2,0) -> 0 | J56: =IF(AND(J42>Form!$M$4,I42<Form!$M$4),2,0) -> 0 | K56: =IF(AND(K42>Form!$M$4,J42<Form!$M$4),2,0) -> 0
C57: =HLOOKUP(1,E41:K42,2,FALSE) ->  | E57: =IF(F56=2,1,0) -> 0 | F57: =IF(G56=2,1,0) -> 0 | G57: 0 | H57: 0 | I57: 0 | J57: 0 | K57: 0
C58: =HLOOKUP(2,E41:K42,2,FALSE) ->  | E58: =SUM(E56:E57) -> 0 | F58: 0 | G58: 0 | H58: 0 | I58: 0 | J58: 0 | K58: 0
B59: =(VLOOKUP(1,B41:K54,3,FALSE)) ->  | C59: =IF(ISERROR(B59),0,B59) -> 0 | E59: =(C61-C62)/(C59-C60)*(Form!$M$6-C60)+C62 ->  | F59: =(C63-C64)/(C59-C60)*(Form!M6-C60)+C64 -> 
B60: =VLOOKUP(2,B41:K54,3,FALSE) ->  | C60: =IF(ISERROR(B60),0,B60) -> 0 | E60: =IF(AND(B55=0,L41=3),VLOOKUP(Form!$M$5+Form!$M$6,notes!A41:K54,MATCH(1,notes!A41:K41,FALSE),FALSE),0) -> 0 | F60: =IF(AND(B55=0,L41=3),VLOOKUP(Form!$M$5+Form!$M$6,notes!A41:K54,MATCH(2,notes!A41:K41,FALSE),FALSE),0) -> 0 | I60: exactly
B61: =VLOOKUP(1,B41:K54,MATCH(1,B41:K41,FALSE),FALSE) ->  | C61: =MIN(B61,B63) ->  | E61: =IF(ISERROR(E59),E60,E59) -> 0 | F61: =IF(ISERROR(F59),F60,F59) -> 0 | I61: x | J61: y | K61: err1 | L61: err2 | M61: err3 | N61: ans
B62: =VLOOKUP(2,B41:K54,MATCH(1,B41:K41,FALSE),FALSE) ->  | C62: =MAX(B62,B64) ->  | E62: =MIN(E61:F61) -> 0 | F62: =MAX(E61:F61) -> 0 | I62: y | J62: y | K62: =IF(ISERROR(VLOOKUP(Form!$M$5+Form!$M$6,notes!A42:K54,MATCH(Form!$M$4,notes!A42:K42,FALSE),FALSE)),0,VLOOKUP(Form!$M$5+Form!$M$6,notes!A42:K54,MATCH(Form!$M$4,notes!A42:K42,FALSE),FALSE)) -> 0 | N62: =SUM(K62:M62) -> 0
B63: =VLOOKUP(1,B41:K54,MATCH(2,B41:K41,FALSE),FALSE) ->  | C63: =MAX(B63,B61) ->  | E63: =(E62-F62)/(C58-C57)*(Form!$M$4-C57)+F62 ->  | I63: y | J63: n | N63: =SUM(K63:M63) -> 0
B64: =VLOOKUP(2,B41:K54,MATCH(2,B41:K41,FALSE),FALSE) ->  | C64: =MIN(B62,B64) ->  | I64: n | J64: n | K64: =IF(OR(E63>100000,E63<=0),0,E63) ->  | L64: =IF(K64<>0,0,MIN(E59:F59)) ->  | M64: =IF(AND(L64=0,K64=0),C61,0) ->  | N64: =SUM(K64:M64) -> 
B65: =VLOOKUP(Form!M32+Form!M33,A41:K54,MATCH(2,A41:K41,FALSE),FALSE) ->  | N65: =IF(ISERROR(N64),N62,N64) -> 0

Sheet Options (hidden)
A1: PSH4BG

Sheet Calcs (hidden)
D1: Condenser :
D2: ADP Evaporator:
D3: Condenser Entering Air Temperature: | E3: 100 | F3: (°F) Dry Bulb, 85°F to 115°F
D4: Evaporator Air Flow: | E4: 1265 | F4: CFM
D5: Entering Evaporator Air (DB): | E5: 77.5 | F5: (°F) Dry Bulb
D6: Entering Evaporator Air (WB): | E6: 60.6 | F6: (°F) Wet Bulb, 63°F to 71°F
A9: Total
A10: 28.55 | B10: 1200 60.6
B12: Diff 200 | C12: =A10-A14 -> 0.308 | D12: Diff 1 cfm | E12: =C12/200 -> 0.00154 | F12: 1265 total | G12: =A10-(65*E12) -> 28.4499
A14: 28.242 | B14: 1400 60.6
A16: Sens
A17: 25.32 | B17: 1200 60.6
B19: Diff 200 | C19: =A17-A21 -> 0.5544 | D19: Diff 1 cfm | E19: =C19/200 -> 0.002772 | F19: 1265 Sens | G19: =A17-(65*E19) -> 25.13982
A21: 24.7656 | B21: 1400 60.6

Sheet PSH4BG_24 (hidden)
A2: PSH4BG_24F_24
A3: Evaporator Air | C3: Condenser Entering Air Temperature ˚F
A4: 80 | B4: °F DB | C4: 65 | E4: 75 | G4: 80 | I4: 85 | K4: 90 | M4: 95 | O4: 105
A5: CFM | B5: EWB† ˚F | C5: Capacity Mbtuh | E5: Capacity Mbtuh | G5: Capacity Mbtuh | I5: Capacity Mbtuh | K5: Capacity Mbtuh | M5: Capacity Mbtuh | O5: Capacity Mbtuh
C6: Total | D6: Sens. | E6: Total | F6: Sens. | G6: Total | H6: Sens. | I6: Total | J6: Sens. | K6: Total | L6: Sens. | M6: Total | N6: Sens. | O6: Total | P6: Sens.
R7: Total Factors | Y7: Sens. % | AF7: IDB Adj | AM7: Sens Calc
A8: 700 | B8: 72 | C8: =R8*$M$14 -> 29.96129032 | D8: =IF(AM8>C8,C8,AM8) -> 14.02258065 | E8: =S8*$M$14 -> 28.91612903 | F8: =IF(AN8>E8,E8,AN8) -> 13.58709677 | G8: =T8*$M$14 -> 28.30645161 | H8: =IF(AO8>G8,G8,AO8) -> 13.36935484 | I8: =U8*$M$14 -> 27.69677419 | J8: =IF(AP8>I8,I8,AP8) -> 13.1516129 | K8: =V8*$M$14 -> 27 | L8: =IF(AQ8>K8,K8,AQ8) -> 12.93387097 | M8: =W8*$M$14 -> 26.30322581 | N8: =IF(AR8>M8,M8,AR8) -> 12.71612903 | O8: =X8*$M$14 -> 24.82258065 | P8: =IF(AS8>O8,O8,AS8) -> 12.19354839 | R8: 1.23297491 | S8: 1.189964158 | T8: 1.164874552 | U8: 1.139784946 | V8: 1.111111111 | W8: 1.082437276 | X8: 1.021505376 | Y8: 0.4680232558 | Z8: 0.4698795181 | AA8: 0.4723076923 | AB8: 0.4748427673 | AC8: 0.4790322581 | AD8: 0.4834437086 | AE8: 0.4912280702 | AF8: 1.028571429 | AG8: 0.9428571429 | AH8: 0.9142857143 | AI8: 0.8857142857 | AJ8: 0.8714285714 | AK8: 0.8571428571 | AL8: 0.8571428571 | AM8: =Y8*C8+($A$4-80)*AF8*$A$8/1000 -> 14.02258065 | AN8: =Z8*E8+($A$4-80)*AG8*$A$8/1000 -> 13.58709677 | AO8: =AA8*G8+($A$4-80)*AH8*$A$8/1000 -> 13.36935484 | AP8: =AB8*I8+($A$4-80)*AI8*$A$8/1000 -> 13.1516129 | AQ8: =AC8*K8+($A$4-80)*AJ8*$A$8/1000 -> 12.93387097 | AR8: =AD8*M8+($A$4-80)*AK8*$A$8/1000 -> 12.71612903 | AS8: =AE8*O8+($A$4-80)*AL8*$A$8/1000 -> 12.19354839
B9: 69.5 | C9: =R9*$M$14 -> 28.56774194 | D9: 15.59032258 | E9: =S9*$M$14 -> 27.43548387 | F9: 15.11129032 | G9: =T9*$M$14 -> 26.82580645 | H9: 14.89354839 | I9: =U9*$M$14 -> 26.21612903 | J9: 14.67580645 | K9: =V9*$M$14 -> 25.58467742 | L9: 14.43629032 | M9: =W9*$M$14 -> 24.95322581 | N9: 14.19677419 | O9: =X9*$M$14 -> 23.60322581 | P9: 13.71774194 | R9: 1.17562724 | S9: 1.129032258 | T9: 1.103942652 | U9: 1.078853047 | V9: 1.052867384 | W9: 1.02688172 | X9: 0.9713261649 | Y9: 0.5457317073 | Z9: 0.5507936508 | AA9: 0.5551948052 | AB9: 0.5598006645 | AC9: 0.5642553191 | AD9: 0.5689354276 | AE9: 0.5811808118 | AF9: 1.028571429 | AG9: 0.9428571429 | AH9: 0.9142857143 | AI9: 0.8857142857 | AJ9: 0.8714285714 | AK9: 0.8571428571 | AL9: 0.8571428571 | AM9: =Y9*C9+($A$4-80)*AF9*$A$8/1000 -> 15.59032258 | AN9: =Z9*E9+($A$4-80)*AG9*$A$8/1000 -> 15.11129032 | AO9: =AA9*G9+($A$4-80)*AH9*$A$8/1000 -> 14.89354839 | AP9: =AB9*I9+($A$4-80)*AI9*$A$8/1000 -> 14.67580645 | AQ9: =AC9*K9+($A$4-80)*AJ9*$A$8/1000 -> 14.43629032 | AR9: =AD9*M9+($A$4-80)*AK9*$A$8/1000 -> 14.19677419 | AS9: =AE9*O9+($A$4-80)*AL9*$A$8/1000 -> 13.71774194
B10: 67 | C10: 27.17419355 | D10: 17.15806452 | E10: 25.95483871 | F10: 16.63548387 | G10: 25.34516129 | H10: 16.41774194 | I10: 24.73548387 | J10: 16.2 | K10: 24.16935484 | L10: 15.93870968 | M10: 23.60322581 | N10: 15.67741935 | O10: 22.38387097 | P10: 15.24193548 | R10: 1.11827957 | S10: 1.068100358 | T10: 1.043010753 | U10: 1.017921147 | V10: 0.9946236559 | W10: 0.9713261649 | X10: 0.9211469534 | Y10: 0.6314102564 | Z10: 0.6409395973 | AA10: 0.647766323 | AB10: 0.6549295775 | AC10: 0.6594594595 | AD10: 0.6642066421 | AE10: 0.6809338521 | AF10: 1.028571429 | AG10: 0.9428571429 | AH10: 0.9142857143 | AI10: 0.8857142857 | AJ10: 0.8714285714 | AK10: 0.8571428571 | AL10: 0.8571428571 | AM10: =Y10*C10+($A$4-80)*AF10*$A$8/1000 -> 17.15806452 | AN10: =Z10*E10+($A$4-80)*AG10*$A$8/1000 -> 16.63548387 | AO10: =AA10*G10+($A$4-80)*AH10*$A$8/1000 -> 16.41774194 | AP10: =AB10*I10+($A$4-80)*AI10*$A$8/1000 -> 16.2 | AQ10: =AC10*K10+($A$4-80)*AJ10*$A$8/1000 -> 15.93870968 | AR10: =AD10*M10+($A$4-80)*AK10*$A$8/1000 -> 15.67741935 | AS10: =AE10*O10+($A$4-80)*AL10*$A$8/1000 -> 15.24193548
B11: 62 | C11: 25.43225806 | D11: 20.46774194 | E11: 24.03870968 | F11: 19.85806452 | G11: 23.38548387 | H11: 19.55322581 | I11: 22.73225806 | J11: 19.2483871 | K11: 22.07903226 | L11: 18.94354839 | M11: 21.42580645 | N11: 18.63870968 | O11: 20.11935484 | P11: 18.02903226 | R11: 1.046594982 | S11: 0.9892473118 | T11: 0.9623655914 | U11: 0.935483871 | V11: 0.9086021505 | W11: 0.8817204301 | X11: 0.8279569892 | Y11: 0.8047945205 | Z11: 0.8260869565 | AA11: 0.8361266294 | AB11: 0.846743295 | AC11: 0.8579881657 | AD11: 0.8699186992 | AE11: 0.8961038961 | AF11: 1.028571429 | AG11: 0.9428571429 | AH11: 0.9142857143 | AI11: 0.8857142857 | AJ11: 0.8714285714 | AK11: 0.8571428571 | AL11: 0.8571428571 | AM11: =Y11*C11+($A$4-80)*AF11*$A$8/1000 -> 20.46774194 | AN11: =Z11*E11+($A$4-80)*AG11*$A$8/1000 -> 19.85806452 | AO11: =AA11*G11+($A$4-80)*AH11*$A$8/1000 -> 19.55322581 | AP11: =AB11*I11+($A$4-80)*AI11*$A$8/1000 -> 19.2483871 | AQ11: =AC11*K11+($A$4-80)*AJ11*$A$8/1000 -> 18.94354839 | AR11: =AD11*M11+($A$4-80)*AK11*$A$8/1000 -> 18.63870968 | AS11: =AE11*O11+($A$4-80)*AL11*$A$8/1000 -> 18.02903226
A12: 800 | B12: 72 | C12: 30.65806452 | D12: 14.71935484 | E12: 29.61290323 | F12: 14.37096774 | G12: 28.95967742 | H12: 14.15322581 | I12: 28.30645161 | J12: 13.93548387 | K12: 27.60967742 | L12: 13.67419355 | M12: 26.91290323 | N12: 13.41290323 | O12: 25.34516129 | P12: 12.89032258 | R12: 1.261648746 | S12: 1.218637993 | T12: 1.191756272 | U12: 1.164874552 | V12: 1.136200717 | W12: 1.107526882 | X12: 1.043010753 | Y12: 0.4801136364 | Z12: 0.4852941176 | AA12: 0.4887218045 | AB12: 0.4923076923 | AC12: 0.4952681388 | AD12: 0.498381877 | AE12: 0.5085910653 | AF12: 1 | AG12: 0.925 | AH12: 0.9 | AI12: 0.875 | AJ12: 0.85 | AK12: 0.825 | AL12: 0.825 | AM12: =Y12*C12+($A$4-80)*AF12*$A$12/1000 -> 14.71935484 | AN12: =Z12*E12+($A$4-80)*AG12*$A$12/1000 -> 14.37096774 | AO12: =AA12*G12+($A$4-80)*AH12*$A$12/1000 -> 14.15322581 | AP12: =AB12*I12+($A$4-80)*AI12*$A$12/1000 -> 13.93548387 | AQ12: =AC12*K12+($A$4-80)*AJ12*$A$12/1000 -> 13.67419355 | AR12: =AD12*M12+($A$4-80)*AK12*$A$12/1000 -> 13.41290323 | AS12: =AE12*O12+($A$4-80)*AL12*$A$12/1000 -> 12.89032258
B13: 69.5 | C13: 29.3516129 | D13: 16.46129032 | E13: 28.21935484 | F13: 16.02580645 | G13: 27.58790323 | H13: 15.80806452 | I13: 26.95645161 | J13: 15.59032258 | K13: 26.28145161 | L13: 15.32903226 | M13: 25.60645161 | N13: 15.06774194 | O13: 24.21290323 | P13: 14.58870968 | R13: 1.207885305 | S13: 1.161290323 | T13: 1.135304659 | U13: 1.109318996 | V13: 1.081541219 | W13: 1.053763441 | X13: 0.9964157706 | Y13: 0.5608308605 | Z13: 0.5679012346 | AA13: 0.5730071034 | AB13: 0.5783521809 | AC13: 0.5832642916 | AD13: 0.5884353741 | AE13: 0.6025179856 | AF13: 1 | AG13: 0.925 | AH13: 0.9 | AI13: 0.875 | AJ13: 0.85 | AK13: 0.825 | AL13: 0.825 | AM13: =Y13*C13+($A$4-80)*AF13*$A$12/1000 -> 16.46129032 | AN13: =Z13*E13+($A$4-80)*AG13*$A$12/1000 -> 16.02580645 | AO13: =AA13*G13+($A$4-80)*AH13*$A$12/1000 -> 15.80806452 | AP13: =AB13*I13+($A$4-80)*AI13*$A$12/1000 -> 15.59032258 | AQ13: =AC13*K13+($A$4-80)*AJ13*$A$12/1000 -> 15.32903226 | AR13: =AD13*M13+($A$4-80)*AK13*$A$12/1000 -> 15.06774194 | AS13: =AE13*O13+($A$4-80)*AL13*$A$12/1000 -> 14.58870968
B14: 67 | C14: 28.04516129 | D14: 18.20322581 | E14: 26.82580645 | F14: 17.68064516 | G14: 26.21612903 | H14: 17.46290323 | I14: 25.60645161 | J14: 17.24516129 | K14: 24.95322581 | L14: 16.98387097 | M14: 24.3 | N14: 16.72258065 | O14: 23.08064516 | P14: 16.28709677 | R14: 1.154121864 | S14: 1.103942652 | T14: 1.078853047 | U14: 1.053763441 | V14: 1.02688172 | W14: 1 | X14: 0.9498207885 | Y14: 0.649068323 | Z14: 0.6590909091 | AA14: 0.6661129568 | AB14: 0.6734693878 | AC14: 0.6806282723 | AD14: 0.688172043 | AE14: 0.7056603774 | AF14: 1 | AG14: 0.925 | AH14: 0.9 | AI14: 0.875 | AJ14: 0.85 | AK14: 0.825 | AL14: 0.825 | AM14: =Y14*C14+($A$4-80)*AF14*$A$12/1000 -> 18.20322581 | AN14: =Z14*E14+($A$4-80)*AG14*$A$12/1000 -> 17.68064516 | AO14: =AA14*G14+($A$4-80)*AH14*$A$12/1000 -> 17.46290323 | AP14: =AB14*I14+($A$4-80)*AI14*$A$12/1000 -> 17.24516129 | AQ14: =AC14*K14+($A$4-80)*AJ14*$A$12/1000 -> 16.98387097 | AR14: =AD14*M14+($A$4-80)*AK14*$A$12/1000 -> 16.72258065 | AS14: =AE14*O14+($A$4-80)*AL14*$A$12/1000 -> 16.28709677
B15: 62 | C15: 26.39032258 | D15: 21.86129032 | E15: 24.99677419 | F15: 21.2516129 | G15: 24.3 | H15: 20.94677419 | I15: 23.60322581 | J15: 20.64193548 | K15: 22.90645161 | L15: 20.29354839 | M15: =W15*$M$14 -> 22.20967742 | N15: 19.94516129 | O15: 20.81612903 | P15: 19.2483871 | R15: 1.086021505 | S15: 1.028673835 | T15: 1 | U15: 0.9713261649 | V15: 0.9426523297 | W15: 0.9139784946 | X15: 0.8566308244 | Y15: 0.8283828383 | Z15: 0.850174216 | AA15: 0.8620071685 | AB15: 0.8745387454 | AC15: 0.8859315589 | AD15: 0.8980392157 | AE15: 0.9246861925 | AF15: 1 | AG15: 0.925 | AH15: 0.9 | AI15: 0.875 | AJ15: 0.85 | AK15: 0.825 | AL15: 0.825 | AM15: =Y15*C15+($A$4-80)*AF15*$A$12/1000 -> 21.86129032 | AN15: =Z15*E15+($A$4-80)*AG15*$A$12/1000 -> 21.2516129 | AO15: =AA15*G15+($A$4-80)*AH15*$A$12/1000 -> 20.94677419 | AP15: =AB15*I15+($A$4-80)*AI15*$A$12/1000 -> 20.64193548 | AQ15: =AC15*K15+($A$4-80)*AJ15*$A$12/1000 -> 20.29354839 | AR15: =AD15*M15+($A$4-80)*AK15*$A$12/1000 -> 19.94516129 | AS15: =AE15*O15+($A$4-80)*AL15*$A$12/1000 -> 19.2483871
A16: 900 | B16: 72 | C16: 31.35483871 | D16: 15.41612903 | E16: 30.22258065 | F16: 15.06774194 | G16: 29.61290323 | H16: 14.85 | I16: 29.00322581 | J16: 14.63225806 | K16: 28.26290323 | L16: 14.41451613 | M16: 27.52258065 | N16: 14.19677419 | O16: 25.86774194 | P16: 13.58709677 | R16: 1.290322581 | S16: 1.243727599 | T16: 1.218637993 | U16: 1.193548387 | V16: 1.163082437 | W16: 1.132616487 | X16: 1.064516129 | Y16: 0.4916666667 | Z16: 0.4985590778 | AA16: 0.5014705882 | AB16: 0.5045045045 | AC16: 0.5100154083 | AD16: 0.5158227848 | AE16: 0.5252525253 | AF16: 0.9777777778 | AG16: 0.9111111111 | AH16: 0.8888888889 | AI16: 0.8666666667 | AJ16: 0.8333333333 | AK16: 0.8 | AL16: 0.8 | AM16: =Y16*C16+($A$4-80)*AF16*$A$16/1000 -> 15.41612903 | AN16: =Z16*E16+($A$4-80)*AG16*$A$16/1000 -> 15.06774194 | AO16: =AA16*G16+($A$4-80)*AH16*$A$16/1000 -> 14.85 | AP16: =AB16*I16+($A$4-80)*AI16*$A$16/1000 -> 14.63225806 | AQ16: =AC16*K16+($A$4-80)*AJ16*$A$16/1000 -> 14.41451613 | AR16: =AD16*M16+($A$4-80)*AK16*$A$16/1000 -> 14.19677419 | AS16: =AE16*O16+($A$4-80)*AL16*$A$16/1000 -> 13.58709677
B17: 69.5 | C17: 30.22258065 | D17: 17.41935484 | E17: 29.13387097 | F17: 17.11451613 | G17: 28.54596774 | H17: 16.89677419 | I17: 27.95806452 | J17: 16.67903226 | K17: 27.23951613 | L17: 16.43951613 | M17: 26.52096774 | N17: 16.2 | O17: 24.86612903 | P17: 15.54677419 | R17: 1.243727599 | S17: 1.198924731 | T17: 1.174731183 | U17: 1.150537634 | V17: 1.120967742 | W17: 1.091397849 | X17: 1.023297491 | Y17: 0.5763688761 | Z17: 0.5874439462 | AA17: 0.591914569 | AB17: 0.5965732087 | AC17: 0.6035171863 | AD17: 0.6108374384 | AE17: 0.6252189142 | AF17: 0.9777777778 | AG17: 0.9111111111 | AH17: 0.8888888889 | AI17: 0.8666666667 | AJ17: 0.8333333333 | AK17: 0.8 | AL17: 0.8 | AM17: =Y17*C17+($A$4-80)*AF17*$A$16/1000 -> 17.41935484 | AN17: =Z17*E17+($A$4-80)*AG17*$A$16/1000 -> 17.11451613 | AO17: =AA17*G17+($A$4-80)*AH17*$A$16/1000 -> 16.89677419 | AP17: =AB17*I17+($A$4-80)*AI17*$A$16/1000 -> 16.67903226 | AQ17: =AC17*K17+($A$4-80)*AJ17*$A$16/1000 -> 16.43951613 | AR17: =AD17*M17+($A$4-80)*AK17*$A$16/1000 -> 16.2 | AS17: =AE17*O17+($A$4-80)*AL17*$A$16/1000 -> 15.54677419
B18: 67 | C18: 29.09032258 | D18: 19.42258065 | E18: 28.04516129 | F18: 19.16129032 | G18: 27.47903226 | H18: 18.94354839 | I18: 26.91290323 | J18: 18.72580645 | K18: 26.21612903 | L18: 18.46451613 | M18: 25.51935484 | N18: 18.20322581 | O18: 23.86451613 | P18: 17.50645161 | R18: 1.197132616 | S18: 1.154121864 | T18: 1.130824373 | U18: 1.107526882 | V18: 1.078853047 | W18: 1.050179211 | X18: 0.982078853 | Y18: 0.6676646707 | Z18: 0.6832298137 | AA18: 0.6893819334 | AB18: 0.6957928803 | AC18: 0.7043189369 | AD18: 0.7133105802 | AE18: 0.7335766423 | AF18: 0.9777777778 | AG18: 0.9111111111 | AH18: 0.8888888889 | AI18: 0.8666666667 | AJ18: 0.8333333333 | AK18: 0.8 | AL18: 0.8 | AM18: =Y18*C18+($A$4-80)*AF18*$A$16/1000 -> 19.42258065 | AN18: =Z18*E18+($A$4-80)*AG18*$A$16/1000 -> 19.16129032 | AO18: =AA18*G18+($A$4-80)*AH18*$A$16/1000 -> 18.94354839 | AP18: =AB18*I18+($A$4-80)*AI18*$A$16/1000 -> 18.72580645 | AQ18: =AC18*K18+($A$4-80)*AJ18*$A$16/1000 -> 18.46451613 | AR18: =AD18*M18+($A$4-80)*AK18*$A$16/1000 -> 18.20322581 | AS18: =AE18*O18+($A$4-80)*AL18*$A$16/1000 -> 17.50645161
B19: 62 | C19: 25.11452514 | D19: 21.50381066 | E19: 23.75698324 | F19: 20.80729069 | G19: 23.07821229 | H19: 20.52725273 | I19: 22.39944134 | J19: 20.24718185 | K19: 21.78854749 | L19: 19.94951412 | M19: 21.17765363 | N19: 19.65350432 | O19: 19.82011173 | P19: 19.01441613 | R19: 1.033519553 | S19: 0.9776536313 | T19: 0.9497206704 | U19: 0.9217877095 | V19: 0.8966480447 | W19: 0.8715083799 | X19: 0.8156424581 | Y19: 0.8562300319 | Z19: 0.8758389262 | AA19: 0.8894645941 | AB19: 0.9039145907 | AC19: 0.9155963303 | AD19: 0.928030303 | AE19: 0.9593495935 | AF19: 0.9777777778 | AG19: 0.9111111111 | AH19: 0.8888888889 | AI19: 0.8666666667 | AJ19: 0.8333333333 | AK19: 0.8 | AL19: 0.8 | AM19: =Y19*C19+($A$4-80)*AF19*$A$16/1000 -> 21.50381066 | AN19: =Z19*E19+($A$4-80)*AG19*$A$16/1000 -> 20.80729069 | AO19: =AA19*G19+($A$4-80)*AH19*$A$16/1000 -> 20.52725273 | AP19: =AB19*I19+($A$4-80)*AI19*$A$16/1000 -> 20.24718185 | AQ19: =AC19*K19+($A$4-80)*AJ19*$A$16/1000 -> 19.94951412 | AR19: =AD19*M19+($A$4-80)*AK19*$A$16/1000 -> 19.65350432 | AS19: =AE19*O19+($A$4-80)*AL19*$A$16/1000 -> 19.01441613

Sheet PSH4BG_36 (hidden)
A2: CSA4BF_36
A3: Evaporator Air | C3: Condenser Entering Air Temperature ˚F
A4: 80 | B4: °F DB | C4: 65 | E4: 75 | G4: 80 | I4: 85 | K4: 90 | M4: 95 | O4: 105
A5: CFM | B5: EWB† ˚F | C5: Capacity Mbtuh | E5: Capacity Mbtuh | G5: Capacity Mbtuh | I5: Capacity Mbtuh | K5: Capacity Mbtuh | M5: Capacity Mbtuh | O5: Capacity Mbtuh
C6: Total | D6: Sens. | E6: Total | F6: Sens. | G6: Total | H6: Sens. | I6: Total | J6: Sens. | K6: Total | L6: Sens. | M6: Total | N6: Sens. | O6: Total | P6: Sens.
R7: Total Factors | Y7: Sens. % | AF7: IDB Adj | AM7: Sens Calc
A8: 1050 | B8: 72 | C8: =R8*$M$14 -> 27.8253886 | D8: =IF(AM8>C8,C8,AM8) -> 13.22020725 | E8: =S8*$M$14 -> 27.95129534 | F8: =IF(AN8>E8,E8,AN8) -> 13.47202073 | G8: =T8*$M$14 -> 27.69948187 | H8: =IF(AO8>G8,G8,AO8) -> 13.40906736 | I8: =U8*$M$14 -> 27.44766839 | J8: =IF(AP8>I8,I8,AP8) -> 13.34611399 | K8: =V8*$M$14 -> 26.91256477 | L8: =IF(AQ8>K8,K8,AQ8) -> 13.15725389 | M8: =W8*$M$14 -> 26.37746114 | N8: =IF(AR8>M8,M8,AR8) -> 12.96839378 | O8: =X8*$M$14 -> 24.61476684 | P8: =IF(AS8>O8,O8,AS8) -> 12.27590674 | R8: 1.14507772 | S8: 1.150259067 | T8: 1.139896373 | U8: 1.129533679 | V8: 1.107512953 | W8: 1.085492228 | X8: 1.012953368 | Y8: 0.4751131222 | Z8: 0.481981982 | AA8: 0.4840909091 | AB8: 0.4862385321 | AC8: 0.4888888889 | AD8: 0.491646778 | AE8: 0.4987212276 | AF8: 1.066666667 | AG8: 1.085714286 | AH8: 1.076190476 | AI8: 1.066666667 | AJ8: 1.038095238 | AK8: 1.00952381 | AL8: 0.9333333333 | AM8: =Y8*C8+($A$4-80)*AF8*$A$8/1000 -> 13.22020725 | AN8: =Z8*E8+($A$4-80)*AG8*$A$8/1000 -> 13.47202073 | AO8: =AA8*G8+($A$4-80)*AH8*$A$8/1000 -> 13.40906736 | AP8: =AB8*I8+($A$4-80)*AI8*$A$8/1000 -> 13.34611399 | AQ8: =AC8*K8+($A$4-80)*AJ8*$A$8/1000 -> 13.15725389 | AR8: =AD8*M8+($A$4-80)*AK8*$A$8/1000 -> 12.96839378 | AS8: =AE8*O8+($A$4-80)*AL8*$A$8/1000 -> 12.27590674
B9: 69.5 | C9: =R9*$M$14 -> 27.19585492 | D9: 15.17176166 | E9: =S9*$M$14 -> 26.97551813 | F9: 15.20323834 | G9: =T9*$M$14 -> 26.62927461 | H9: 15.09306995 | I9: =U9*$M$14 -> 26.28303109 | J9: 14.98290155 | K9: =V9*$M$14 -> 25.68497409 | L9: 14.76256477 | M9: =W9*$M$14 -> 25.0869171 | N9: 14.54222798 | O9: =X9*$M$14 -> 23.38717617 | P9: 13.84974093 | R9: 1.119170984 | S9: 1.110103627 | T9: 1.095854922 | U9: 1.081606218 | V9: 1.056994819 | W9: 1.03238342 | X9: 0.9624352332 | Y9: 0.5578703704 | Z9: 0.5635939323 | AA9: 0.56678487 | AB9: 0.5700598802 | AC9: 0.574754902 | AD9: 0.5796737767 | AE9: 0.5921938089 | AF9: 1.066666667 | AG9: 1.085714286 | AH9: 1.076190476 | AI9: 1.066666667 | AJ9: 1.038095238 | AK9: 1.00952381 | AL9: 0.9333333333 | AM9: =Y9*C9+($A$4-80)*AF9*$A$8/1000 -> 15.17176166 | AN9: =Z9*E9+($A$4-80)*AG9*$A$8/1000 -> 15.20323834 | AO9: =AA9*G9+($A$4-80)*AH9*$A$8/1000 -> 15.09306995 | AP9: =AB9*I9+($A$4-80)*AI9*$A$8/1000 -> 14.98290155 | AQ9: =AC9*K9+($A$4-80)*AJ9*$A$8/1000 -> 14.76256477 | AR9: =AD9*M9+($A$4-80)*AK9*$A$8/1000 -> 14.54222798 | AS9: =AE9*O9+($A$4-80)*AL9*$A$8/1000 -> 13.84974093
B10: 67 | C10: 26.56632124 | D10: 17.12331606 | E10: 25.99974093 | F10: 16.93445596 | G10: 25.55906736 | H10: 16.77707254 | I10: 25.11839378 | J10: 16.61968912 | K10: 24.45738342 | L10: 16.36787565 | M10: 23.79637306 | N10: 16.11606218 | O10: 22.15958549 | P10: 15.42357513 | R10: 1.093264249 | S10: 1.069948187 | T10: 1.051813472 | U10: 1.033678756 | V10: 1.006476684 | W10: 0.9792746114 | X10: 0.9119170984 | Y10: 0.644549763 | Z10: 0.6513317191 | AA10: 0.6564039409 | AB10: 0.6616541353 | AC10: 0.6692406692 | AD10: 0.6772486772 | AE10: 0.6960227273 | AF10: 1.066666667 | AG10: 1.085714286 | AH10: 1.076190476 | AI10: 1.066666667 | AJ10: 1.038095238 | AK10: 1.00952381 | AL10: 0.9333333333 | AM10: =Y10*C10+($A$4-80)*AF10*$A$8/1000 -> 17.12331606 | AN10: =Z10*E10+($A$4-80)*AG10*$A$8/1000 -> 16.93445596 | AO10: =AA10*G10+($A$4-80)*AH10*$A$8/1000 -> 16.77707254 | AP10: =AB10*I10+($A$4-80)*AI10*$A$8/1000 -> 16.61968912 | AQ10: =AC10*K10+($A$4-80)*AJ10*$A$8/1000 -> 16.36787565 | AR10: =AD10*M10+($A$4-80)*AK10*$A$8/1000 -> 16.11606218 | AS10: =AE10*O10+($A$4-80)*AL10*$A$8/1000 -> 15.42357513
B11: 62 | C11: 24.61476684 | D11: 20.64870466 | E11: 23.67046632 | F11: 20.20803109 | G11: 23.10388601 | H11: 19.89326425 | I11: 22.5373057 | J11: 19.57849741 | K11: 21.90777202 | L11: 19.2007772 | M11: 21.27823834 | N11: 18.82305699 | O11: 19.89326425 | P11: 17.94170984 | R11: 1.012953368 | S11: 0.9740932642 | T11: 0.9507772021 | U11: 0.9274611399 | V11: 0.9015544041 | W11: 0.8756476684 | X11: 0.8186528497 | Y11: 0.8388746803 | Z11: 0.8537234043 | AA11: 0.8610354223 | AB11: 0.8687150838 | AC11: 0.8764367816 | AD11: 0.8846153846 | AE11: 0.9018987342 | AF11: 1.066666667 | AG11: 1.085714286 | AH11: 1.076190476 | AI11: 1.066666667 | AJ11: 1.038095238 | AK11: 1.00952381 | AL11: 0.9333333333 | AM11: =Y11*C11+($A$4-80)*AF11*$A$8/1000 -> 20.64870466 | AN11: =Z11*E11+($A$4-80)*AG11*$A$8/1000 -> 20.20803109 | AO11: =AA11*G11+($A$4-80)*AH11*$A$8/1000 -> 19.89326425 | AP11: =AB11*I11+($A$4-80)*AI11*$A$8/1000 -> 19.57849741 | AQ11: =AC11*K11+($A$4-80)*AJ11*$A$8/1000 -> 19.2007772 | AR11: =AD11*M11+($A$4-80)*AK11*$A$8/1000 -> 18.82305699 | AS11: =AE11*O11+($A$4-80)*AL11*$A$8/1000 -> 17.94170984
A12: 1200 | B12: 72 | C12: 27.76243523 | D12: 13.47202073 | E12: 27.88834197 | F12: 13.66088083 | G12: 27.66800518 | H12: 13.66088083 | I12: 27.44766839 | J12: 13.66088083 | K12: 26.97551813 | L12: 13.53497409 | M12: 26.50336788 | N12: 13.40906736 | O12: 24.92953368 | P12: 12.90544041 | R12: 1.142487047 | S12: 1.147668394 | T12: 1.138601036 | U12: 1.129533679 | V12: 1.110103627 | W12: 1.090673575 | X12: 1.025906736 | Y12: 0.485260771 | Z12: 0.4898419865 | AA12: 0.4937428896 | AB12: 0.497706422 | AC12: 0.5017502917 | AD12: 0.5059382423 | AE12: 0.5176767677 | AF12: 0.9666666667 | AG12: 1 | AH12: 1 | AI12: 1 | AJ12: 0.9833333333 | AK12: 0.9666666667 | AL12: 0.9166666667 | AM12: =Y12*C12+($A$4-80)*AF12*$A$12/1000 -> 13.47202073 | AN12: =Z12*E12+($A$4-80)*AG12*$A$12/1000 -> 13.66088083 | AO12: =AA12*G12+($A$4-80)*AH12*$A$12/1000 -> 13.66088083 | AP12: =AB12*I12+($A$4-80)*AI12*$A$12/1000 -> 13.66088083 | AQ12: =AC12*K12+($A$4-80)*AJ12*$A$12/1000 -> 13.53497409 | AR12: =AD12*M12+($A$4-80)*AK12*$A$12/1000 -> 13.40906736 | AS12: =AE12*O12+($A$4-80)*AL12*$A$12/1000 -> 12.90544041
B13: 69.5 | C13: 27.25880829 | D13: 15.58095855 | E13: 27.13290155 | F13: 15.73834197 | G13: 26.81813472 | H13: 15.69112694 | I13: 26.50336788 | J13: 15.64391192 | K13: 25.95252591 | L13: 15.47079016 | M13: 25.40168394 | N13: 15.29766839 | O13: 23.73341969 | P13: 14.66813472 | R13: 1.121761658 | S13: 1.116580311 | T13: 1.103626943 | U13: 1.090673575 | V13: 1.068005181 | W13: 1.045336788 | X13: 0.9766839378 | Y13: 0.5715935335 | Z13: 0.5800464037 | AA13: 0.5850938967 | AB13: 0.5902612827 | AC13: 0.5961188599 | AD13: 0.6022304833 | AE13: 0.6180371353 | AF13: 0.9666666667 | AG13: 1 | AH13: 1 | AI13: 1 | AJ13: 0.9833333333 | AK13: 0.9666666667 | AL13: 0.9166666667 | AM13: =Y13*C13+($A$4-80)*AF13*$A$12/1000 -> 15.58095855 | AN13: =Z13*E13+($A$4-80)*AG13*$A$12/1000 -> 15.73834197 | AO13: =AA13*G13+($A$4-80)*AH13*$A$12/1000 -> 15.69112694 | AP13: =AB13*I13+($A$4-80)*AI13*$A$12/1000 -> 15.64391192 | AQ13: =AC13*K13+($A$4-80)*AJ13*$A$12/1000 -> 15.47079016 | AR13: =AD13*M13+($A$4-80)*AK13*$A$12/1000 -> 15.29766839 | AS13: =AE13*O13+($A$4-80)*AL13*$A$12/1000 -> 14.66813472
B14: 67 | C14: 26.75518135 | D14: 17.68989637 | E14: 26.37746114 | F14: 17.81580311 | G14: 25.96826425 | H14: 17.72137306 | I14: 25.55906736 | J14: 17.62694301 | K14: 24.92953368 | L14: 17.40660622 | M14: 24.3 | N14: 17.18626943 | O14: 22.5373057 | P14: 16.43082902 | R14: 1.101036269 | S14: 1.085492228 | T14: 1.06865285 | U14: 1.051813472 | V14: 1.025906736 | W14: 1 | X14: 0.9274611399 | Y14: 0.6611764706 | Z14: 0.6754176611 | AA14: 0.6824242424 | AB14: 0.6896551724 | AC14: 0.6982323232 | AD14: 0.707253886 | AE14: 0.7290502793 | AF14: 0.9666666667 | AG14: 1 | AH14: 1 | AI14: 1 | AJ14: 0.9833333333 | AK14: 0.9666666667 | AL14: 0.9166666667 | AM14: =Y14*C14+($A$4-80)*AF14*$A$12/1000 -> 17.68989637 | AN14: =Z14*E14+($A$4-80)*AG14*$A$12/1000 -> 17.81580311 | AO14: =AA14*G14+($A$4-80)*AH14*$A$12/1000 -> 17.72137306 | AP14: =AB14*I14+($A$4-80)*AI14*$A$12/1000 -> 17.62694301 | AQ14: =AC14*K14+($A$4-80)*AJ14*$A$12/1000 -> 17.40660622 | AR14: =AD14*M14+($A$4-80)*AK14*$A$12/1000 -> 17.18626943 | AS14: =AE14*O14+($A$4-80)*AL14*$A$12/1000 -> 16.43082902
B15: 62 | C15: 24.99248705 | D15: 21.53005181 | E15: 24.04818653 | F15: 21.27823834 | G15: 23.5130829 | H15: 21.02642487 | I15: 22.97797927 | J15: 20.7746114 | K15: 22.37992228 | L15: 20.42836788 | M15: =W15*$M$14 -> 21.78186528 | N15: 20.08212435 | O15: 20.39689119 | P15: 19.2007772 | R15: 1.028497409 | S15: 0.9896373057 | T15: 0.9676165803 | U15: 0.9455958549 | V15: 0.920984456 | W15: 0.896373057 | X15: 0.8393782383 | Y15: 0.8614609572 | Z15: 0.8848167539 | AA15: 0.8942436412 | AB15: 0.904109589 | AC15: 0.9127988748 | AD15: 0.9219653179 | AE15: 0.9413580247 | AF15: 0.9666666667 | AG15: 1 | AH15: 1 | AI15: 1 | AJ15: 0.9833333333 | AK15: 0.9666666667 | AL15: 0.9166666667 | AM15: =Y15*C15+($A$4-80)*AF15*$A$12/1000 -> 21.53005181 | AN15: =Z15*E15+($A$4-80)*AG15*$A$12/1000 -> 21.27823834 | AO15: =AA15*G15+($A$4-80)*AH15*$A$12/1000 -> 21.02642487 | AP15: =AB15*I15+($A$4-80)*AI15*$A$12/1000 -> 20.7746114 | AQ15: =AC15*K15+($A$4-80)*AJ15*$A$12/1000 -> 20.42836788 | AR15: =AD15*M15+($A$4-80)*AK15*$A$12/1000 -> 20.08212435 | AS15: =AE15*O15+($A$4-80)*AL15*$A$12/1000 -> 19.2007772
A16: 1350 | B16: 72 | C16: 28.0142487 | D16: 13.9126943 | E16: 28.39196891 | F16: 14.35336788 | G16: 28.23458549 | H16: 14.41632124 | I16: 28.07720207 | J16: 14.47927461 | K16: 27.57357513 | L16: 14.35336788 | M16: 27.06994819 | N16: 14.22746114 | O16: 25.37020725 | P16: 13.59792746 | R16: 1.152849741 | S16: 1.168393782 | T16: 1.161917098 | U16: 1.155440415 | V16: 1.134715026 | W16: 1.113989637 | X16: 1.044041451 | Y16: 0.4966292135 | Z16: 0.5055432373 | AA16: 0.5105908584 | AB16: 0.5156950673 | AC16: 0.5205479452 | AD16: 0.5255813953 | AE16: 0.5359801489 | AF16: 0.8888888889 | AG16: 0.9185185185 | AH16: 0.9333333333 | AI16: 0.9481481481 | AJ16: 0.9481481481 | AK16: 0.9481481481 | AL16: 0.9037037037 | AM16: =Y16*C16+($A$4-80)*AF16*$A$16/1000 -> 13.9126943 | AN16: =Z16*E16+($A$4-80)*AG16*$A$16/1000 -> 14.35336788 | AO16: =AA16*G16+($A$4-80)*AH16*$A$16/1000 -> 14.41632124 | AP16: =AB16*I16+($A$4-80)*AI16*$A$16/1000 -> 14.47927461 | AQ16: =AC16*K16+($A$4-80)*AJ16*$A$16/1000 -> 14.35336788 | AR16: =AD16*M16+($A$4-80)*AK16*$A$16/1000 -> 14.22746114 | AS16: =AE16*O16+($A$4-80)*AL16*$A$16/1000 -> 13.59792746
B17: 69.5 | C17: 27.51062176 | D17: 16.08458549 | E17: 27.57357513 | F17: 16.52525907 | G17: 27.30602332 | H17: 16.55673575 | I17: 27.0384715 | J17: 16.58821244 | K17: 26.47189119 | L17: 16.43082902 | M17: 25.90531088 | N17: 16.2734456 | O17: 24.17409326 | P17: 15.54948187 | R17: 1.132124352 | S17: 1.134715026 | T17: 1.123704663 | U17: 1.112694301 | V17: 1.089378238 | W17: 1.066062176 | X17: 0.9948186528 | Y17: 0.5846681922 | Z17: 0.5993150685 | AA17: 0.6063400576 | AB17: 0.6135040745 | AC17: 0.6206896552 | AD17: 0.6281895504 | AE17: 0.6432291667 | AF17: 0.8888888889 | AG17: 0.9185185185 | AH17: 0.9333333333 | AI17: 0.9481481481 | AJ17: 0.9481481481 | AK17: 0.9481481481 | AL17: 0.9037037037 | AM17: =Y17*C17+($A$4-80)*AF17*$A$16/1000 -> 16.08458549 | AN17: =Z17*E17+($A$4-80)*AG17*$A$16/1000 -> 16.52525907 | AO17: =AA17*G17+($A$4-80)*AH17*$A$16/1000 -> 16.55673575 | AP17: =AB17*I17+($A$4-80)*AI17*$A$16/1000 -> 16.58821244 | AQ17: =AC17*K17+($A$4-80)*AJ17*$A$16/1000 -> 16.43082902 | AR17: =AD17*M17+($A$4-80)*AK17*$A$16/1000 -> 16.2734456 | AS17: =AE17*O17+($A$4-80)*AL17*$A$16/1000 -> 15.54948187
B18: 67 | C18: 27.00699482 | D18: 18.25647668 | E18: 26.75518135 | F18: 18.69715026 | G18: 26.37746114 | H18: 18.69715026 | I18: 25.99974093 | J18: 18.69715026 | K18: 25.37020725 | L18: 18.50829016 | M18: 24.74067358 | N18: 18.31943005 | O18: 22.97797927 | P18: 17.50103627 | R18: 1.111398964 | S18: 1.101036269 | T18: 1.085492228 | U18: 1.069948187 | V18: 1.044041451 | W18: 1.018134715 | X18: 0.9455958549 | Y18: 0.675990676 | Z18: 0.6988235294 | AA18: 0.7088305489 | AB18: 0.7191283293 | AC18: 0.729528536 | AD18: 0.7404580153 | AE18: 0.7616438356 | AF18: 0.8888888889 | AG18: 0.9185185185 | AH18: 0.9333333333 | AI18: 0.9481481481 | AJ18: 0.9481481481 | AK18: 0.9481481481 | AL18: 0.9037037037 | AM18: =Y18*C18+($A$4-80)*AF18*$A$16/1000 -> 18.25647668 | AN18: =Z18*E18+($A$4-80)*AG18*$A$16/1000 -> 18.69715026 | AO18: =AA18*G18+($A$4-80)*AH18*$A$16/1000 -> 18.69715026 | AP18: =AB18*I18+($A$4-80)*AI18*$A$16/1000 -> 18.69715026 | AQ18: =AC18*K18+($A$4-80)*AJ18*$A$16/1000 -> 18.50829016 | AR18: =AD18*M18+($A$4-80)*AK18*$A$16/1000 -> 18.31943005 | AS18: =AE18*O18+($A$4-80)*AL18*$A$16/1000 -> 17.50103627
B19: 62 | C19: 25.37020725 | D19: 22.41139896 | E19: 24.4888601 | F19: 22.3484456 | G19: 23.95375648 | H19: 22.19106218 | I19: 23.41865285 | J19: 22.03367876 | K19: 22.82059585 | L19: 21.71891192 | M19: 22.22253886 | N19: 21.40414508 | O19: 20.83756477 | P19: 20.45984456 | R19: 1.044041451 | S19: 1.007772021 | T19: 0.9857512953 | U19: 0.9637305699 | V19: 0.939119171 | W19: 0.914507772 | X19: 0.8575129534 | Y19: 0.8833746898 | Z19: 0.912596401 | AA19: 0.926412615 | AB19: 0.9408602151 | AC19: 0.9517241379 | AD19: 0.9631728045 | AE19: 0.9818731118 | AF19: 0.8888888889 | AG19: 0.9185185185 | AH19: 0.9333333333 | AI19: 0.9481481481 | AJ19: 0.9481481481 | AK19: 0.9481481481 | AL19: 0.9037037037 | AM19: =Y19*C19+($A$4-80)*AF19*$A$16/1000 -> 22.41139896 | AN19: =Z19*E19+($A$4-80)*AG19*$A$16/1000 -> 22.3484456 | AO19: =AA19*G19+($A$4-80)*AH19*$A$16/1000 -> 22.19106218 | AP19: =AB19*I19+($A$4-80)*AI19*$A$16/1000 -> 22.03367876 | AQ19: =AC19*K19+($A$4-80)*AJ19*$A$16/1000 -> 21.71891192 | AR19: =AD19*M19+($A$4-80)*AK19*$A$16/1000 -> 21.40414508 | AS19: =AE19*O19+($A$4-80)*AL19*$A$16/1000 -> 20.45984456

Sheet PSH4BG_48 (hidden)
A2: CSA4BF_48
A3: Evaporator Air | C3: Condenser Entering Air Temperature ˚F
A4: 80 | B4: °F DB | C4: 65 | E4: 75 | G4: 80 | I4: 85 | K4: 90 | M4: 95 | O4: 105
A5: CFM | B5: EWB† ˚F | C5: Capacity Mbtuh | E5: Capacity Mbtuh | G5: Capacity Mbtuh | I5: Capacity Mbtuh | K5: Capacity Mbtuh | M5: Capacity Mbtuh | O5: Capacity Mbtuh
C6: Total | D6: Sens. | E6: Total | F6: Sens. | G6: Total | H6: Sens. | I6: Total | J6: Sens. | K6: Total | L6: Sens. | M6: Total | N6: Sens. | O6: Total | P6: Sens.
R7: Total Factors | Y7: Sens. % | AF7: IDB Adj | AM7: Sens Calc
A8: 1200 | B8: 72 | C8: =R8*$M$14 -> 28.39655172 | D8: =IF(AM8>C8,C8,AM8) -> 13.36034483 | E8: =S8*$M$14 -> 27.97758621 | F8: =IF(AN8>E8,E8,AN8) -> 13.17413793 | G8: =T8*$M$14 -> 27.53534483 | H8: =IF(AO8>G8,G8,AO8) -> 13.0112069 | I8: =U8*$M$14 -> 27.09310345 | J8: =IF(AP8>I8,I8,AP8) -> 12.84827586 | K8: =V8*$M$14 -> 26.41810345 | L8: =IF(AQ8>K8,K8,AQ8) -> 12.61551724 | M8: =W8*$M$14 -> 25.74310345 | N8: =IF(AR8>M8,M8,AR8) -> 12.38275862 | O8: =X8*$M$14 -> 23.92758621 | P8: =IF(AS8>O8,O8,AS8) -> 11.73103448 | R8: 1.168582375 | S8: 1.151340996 | T8: 1.133141762 | U8: 1.114942529 | V8: 1.087164751 | W8: 1.059386973 | X8: 0.9846743295 | Y8: 0.4704918033 | Z8: 0.4708818636 | AA8: 0.4725274725 | AB8: 0.4742268041 | AC8: 0.4775330396 | AD8: 0.4810126582 | AE8: 0.4902723735 | AF8: 0.8333333333 | AG8: 0.85 | AH8: 0.8666666667 | AI8: 0.8833333333 | AJ8: 0.8916666667 | AK8: 0.9 | AL8: 0.95 | AM8: =Y8*C8+($A$4-80)*AF8*$A$8/1000 -> 13.36034483 | AN8: =Z8*E8+($A$4-80)*AG8*$A$8/1000 -> 13.17413793 | AO8: =AA8*G8+($A$4-80)*AH8*$A$8/1000 -> 13.0112069 | AP8: =AB8*I8+($A$4-80)*AI8*$A$8/1000 -> 12.84827586 | AQ8: =AC8*K8+($A$4-80)*AJ8*$A$8/1000 -> 12.61551724 | AR8: =AD8*M8+($A$4-80)*AK8*$A$8/1000 -> 12.38275862 | AS8: =AE8*O8+($A$4-80)*AL8*$A$8/1000 -> 11.73103448
B9: 69.5 | C9: =R9*$M$14 -> 27.65172414 | D9: 15.10603448 | E9: =S9*$M$14 -> 27.13965517 | F9: 14.94310345 | G9: =T9*$M$14 -> 26.69741379 | H9: 14.78017241 | I9: =U9*$M$14 -> 26.25517241 | J9: 14.61724138 | K9: =V9*$M$14 -> 25.60344828 | L9: 14.37284483 | M9: =W9*$M$14 -> 24.95172414 | N9: 14.12844828 | O9: =X9*$M$14 -> 23.25258621 | P9: 13.40689655 | R9: 1.137931034 | S9: 1.116858238 | T9: 1.098659004 | U9: 1.08045977 | V9: 1.053639847 | W9: 1.026819923 | X9: 0.9568965517 | Y9: 0.5462962963 | Z9: 0.5506003431 | AA9: 0.5536181343 | AB9: 0.5567375887 | AC9: 0.5613636364 | AD9: 0.5662313433 | AE9: 0.5765765766 | AF9: 0.8333333333 | AG9: 0.85 | AH9: 0.8666666667 | AI9: 0.8833333333 | AJ9: 0.8916666667 | AK9: 0.9 | AL9: 0.95 | AM9: =Y9*C9+($A$4-80)*AF9*$A$8/1000 -> 15.10603448 | AN9: =Z9*E9+($A$4-80)*AG9*$A$8/1000 -> 14.94310345 | AO9: =AA9*G9+($A$4-80)*AH9*$A$8/1000 -> 14.78017241 | AP9: =AB9*I9+($A$4-80)*AI9*$A$8/1000 -> 14.61724138 | AQ9: =AC9*K9+($A$4-80)*AJ9*$A$8/1000 -> 14.37284483 | AR9: =AD9*M9+($A$4-80)*AK9*$A$8/1000 -> 14.12844828 | AS9: =AE9*O9+($A$4-80)*AL9*$A$8/1000 -> 13.40689655
B10: 67 | C10: 26.90689655 | D10: 16.85172414 | E10: 26.30172414 | F10: 16.71206897 | G10: 25.85948276 | H10: 16.54913793 | I10: 25.41724138 | J10: 16.3862069 | K10: 24.7887931 | L10: 16.13017241 | M10: 24.16034483 | N10: 15.87413793 | O10: 22.57758621 | P10: 15.08275862 | R10: 1.107279693 | S10: 1.082375479 | T10: 1.064176245 | U10: 1.045977011 | V10: 1.020114943 | W10: 0.9942528736 | X10: 0.9291187739 | Y10: 0.6262975779 | Z10: 0.6353982301 | AA10: 0.6399639964 | AB10: 0.6446886447 | AC10: 0.6507042254 | AD10: 0.6570327553 | AE10: 0.6680412371 | AF10: 0.8333333333 | AG10: 0.85 | AH10: 0.8666666667 | AI10: 0.8833333333 | AJ10: 0.8916666667 | AK10: 0.9 | AL10: 0.95 | AM10: =Y10*C10+($A$4-80)*AF10*$A$8/1000 -> 16.85172414 | AN10: =Z10*E10+($A$4-80)*AG10*$A$8/1000 -> 16.71206897 | AO10: =AA10*G10+($A$4-80)*AH10*$A$8/1000 -> 16.54913793 | AP10: =AB10*I10+($A$4-80)*AI10*$A$8/1000 -> 16.3862069 | AQ10: =AC10*K10+($A$4-80)*AJ10*$A$8/1000 -> 16.13017241 | AR10: =AD10*M10+($A$4-80)*AK10*$A$8/1000 -> 15.87413793 | AS10: =AE10*O10+($A$4-80)*AL10*$A$8/1000 -> 15.08275862
B11: 62 | C11: 24.34655172 | D11: 19.22586207 | E11: 23.22931034 | F11: 18.76034483 | G11: 22.71724138 | H11: 18.50431034 | I11: 22.20517241 | J11: 18.24827586 | K11: 21.73965517 | L11: 17.99224138 | M11: 21.27413793 | N11: 17.7362069 | O11: 20.4362069 | P11: 17.22413793 | R11: 1.001915709 | S11: 0.9559386973 | T11: 0.9348659004 | U11: 0.9137931034 | V11: 0.8946360153 | W11: 0.8754789272 | X11: 0.8409961686 | Y11: 0.7896749522 | Z11: 0.8076152305 | AA11: 0.8145491803 | AB11: 0.821802935 | AC11: 0.8276231263 | AD11: 0.8336980306 | AE11: 0.8428246014 | AF11: 0.8333333333 | AG11: 0.85 | AH11: 0.8666666667 | AI11: 0.8833333333 | AJ11: 0.8916666667 | AK11: 0.9 | AL11: 0.95 | AM11: =Y11*C11+($A$4-80)*AF11*$A$8/1000 -> 19.22586207 | AN11: =Z11*E11+($A$4-80)*AG11*$A$8/1000 -> 18.76034483 | AO11: =AA11*G11+($A$4-80)*AH11*$A$8/1000 -> 18.50431034 | AP11: =AB11*I11+($A$4-80)*AI11*$A$8/1000 -> 18.24827586 | AQ11: =AC11*K11+($A$4-80)*AJ11*$A$8/1000 -> 17.99224138 | AR11: =AD11*M11+($A$4-80)*AK11*$A$8/1000 -> 17.7362069 | AS11: =AE11*O11+($A$4-80)*AL11*$A$8/1000 -> 17.22413793
A12: 1350 | B12: 72 | C12: 28.58275862 | D12: 13.73275862 | E12: 28.39655172 | F12: 13.63965517 | G12: 28.02413793 | H12: 13.52327586 | I12: 27.65172414 | J12: 13.40689655 | K12: 26.97672414 | L12: 13.17413793 | M12: 26.30172414 | N12: 12.94137931 | O12: 24.39310345 | P12: 12.24310345 | R12: 1.176245211 | S12: 1.168582375 | T12: 1.153256705 | U12: 1.137931034 | V12: 1.110153257 | W12: 1.082375479 | X12: 1.003831418 | Y12: 0.4804560261 | Z12: 0.4803278689 | AA12: 0.4825581395 | AB12: 0.4848484848 | AC12: 0.4883520276 | AD12: 0.4920353982 | AE12: 0.5019083969 | AF12: 0.8740740741 | AG12: 0.8740740741 | AH12: 0.8814814815 | AI12: 0.8888888889 | AJ12: 0.8888888889 | AK12: 0.8888888889 | AL12: 0.8888888889 | AM12: =Y12*C12+($A$4-80)*AF12*$A$12/1000 -> 13.73275862 | AN12: =Z12*E12+($A$4-80)*AG12*$A$12/1000 -> 13.63965517 | AO12: =AA12*G12+($A$4-80)*AH12*$A$12/1000 -> 13.52327586 | AP12: =AB12*I12+($A$4-80)*AI12*$A$12/1000 -> 13.40689655 | AQ12: =AC12*K12+($A$4-80)*AJ12*$A$12/1000 -> 13.17413793 | AR12: =AD12*M12+($A$4-80)*AK12*$A$12/1000 -> 12.94137931 | AS12: =AE12*O12+($A$4-80)*AL12*$A$12/1000 -> 12.24310345
B13: 69.5 | C13: 27.76810345 | D13: 15.50172414 | E13: 27.39568966 | F13: 15.40862069 | G13: 26.98836207 | H13: 15.28060345 | I13: 26.58103448 | J13: 15.15258621 | K13: 25.94094828 | L13: 14.89655172 | M13: 25.30086207 | N13: 14.64051724 | O13: 23.57844828 | P13: 13.91896552 | R13: 1.142720307 | S13: 1.127394636 | T13: 1.110632184 | U13: 1.093869732 | V13: 1.067528736 | W13: 1.041187739 | X13: 0.9703065134 | Y13: 0.5582564962 | Z13: 0.5624468989 | AA13: 0.5661923243 | AB13: 0.5700525394 | AC13: 0.5742485419 | AD13: 0.5786568537 | AE13: 0.5903257651 | AF13: 0.8740740741 | AG13: 0.8740740741 | AH13: 0.8814814815 | AI13: 0.8888888889 | AJ13: 0.8888888889 | AK13: 0.8888888889 | AL13: 0.8888888889 | AM13: =Y13*C13+($A$4-80)*AF13*$A$12/1000 -> 15.50172414 | AN13: =Z13*E13+($A$4-80)*AG13*$A$12/1000 -> 15.40862069 | AO13: =AA13*G13+($A$4-80)*AH13*$A$12/1000 -> 15.28060345 | AP13: =AB13*I13+($A$4-80)*AI13*$A$12/1000 -> 15.15258621 | AQ13: =AC13*K13+($A$4-80)*AJ13*$A$12/1000 -> 14.89655172 | AR13: =AD13*M13+($A$4-80)*AK13*$A$12/1000 -> 14.64051724 | AS13: =AE13*O13+($A$4-80)*AL13*$A$12/1000 -> 13.91896552
B14: 67 | C14: 26.95344828 | D14: 17.27068966 | E14: 26.39482759 | F14: 17.17758621 | G14: 25.95258621 | H14: 17.03793103 | I14: 25.51034483 | J14: 16.89827586 | K14: 24.90517241 | L14: 16.61896552 | M14: 24.3 | N14: 16.33965517 | O14: 22.7637931 | P14: 15.59482759 | R14: 1.109195402 | S14: 1.086206897 | T14: 1.068007663 | U14: 1.049808429 | V14: 1.024904215 | W14: 1 | X14: 0.9367816092 | Y14: 0.6407599309 | Z14: 0.6507936508 | AA14: 0.6565022422 | AB14: 0.6624087591 | AC14: 0.6672897196 | AD14: 0.6724137931 | AE14: 0.6850715746 | AF14: 0.8740740741 | AG14: 0.8740740741 | AH14: 0.8814814815 | AI14: 0.8888888889 | AJ14: 0.8888888889 | AK14: 0.8888888889 | AL14: 0.8888888889 | AM14: =Y14*C14+($A$4-80)*AF14*$A$12/1000 -> 17.27068966 | AN14: =Z14*E14+($A$4-80)*AG14*$A$12/1000 -> 17.17758621 | AO14: =AA14*G14+($A$4-80)*AH14*$A$12/1000 -> 17.03793103 | AP14: =AB14*I14+($A$4-80)*AI14*$A$12/1000 -> 16.89827586 | AQ14: =AC14*K14+($A$4-80)*AJ14*$A$12/1000 -> 16.61896552 | AR14: =AD14*M14+($A$4-80)*AK14*$A$12/1000 -> 16.33965517 | AS14: =AE14*O14+($A$4-80)*AL14*$A$12/1000 -> 15.59482759
B15: 62 | C15: 25.09137931 | D15: 20.52931034 | E15: 24.02068966 | F15: 20.01724138 | G15: 23.46206897 | H15: 19.73793103 | I15: 22.90344828 | J15: 19.45862069 | K15: 22.34482759 | L15: 19.15603448 | M15: =W15*$M$14 -> 21.7862069 | N15: 18.85344828 | O15: 20.62241379 | P15: 18.20172414 | R15: 1.03256705 | S15: 0.9885057471 | T15: 0.9655172414 | U15: 0.9425287356 | V15: 0.9195402299 | W15: 0.8965517241 | X15: 0.8486590038 | Y15: 0.8181818182 | Z15: 0.8333333333 | AA15: 0.8412698413 | AB15: 0.8495934959 | AC15: 0.8572916667 | AD15: 0.8653846154 | AE15: 0.8826185102 | AF15: 0.8740740741 | AG15: 0.8740740741 | AH15: 0.8814814815 | AI15: 0.8888888889 | AJ15: 0.8888888889 | AK15: 0.8888888889 | AL15: 0.8888888889 | AM15: =Y15*C15+($A$4-80)*AF15*$A$12/1000 -> 20.52931034 | AN15: =Z15*E15+($A$4-80)*AG15*$A$12/1000 -> 20.01724138 | AO15: =AA15*G15+($A$4-80)*AH15*$A$12/1000 -> 19.73793103 | AP15: =AB15*I15+($A$4-80)*AI15*$A$12/1000 -> 19.45862069 | AQ15: =AC15*K15+($A$4-80)*AJ15*$A$12/1000 -> 19.15603448 | AR15: =AD15*M15+($A$4-80)*AK15*$A$12/1000 -> 18.85344828 | AS15: =AE15*O15+($A$4-80)*AL15*$A$12/1000 -> 18.20172414
A16: 1500 | B16: 72 | C16: 28.76896552 | D16: 14.10517241 | E16: 28.81551724 | F16: 14.19827586 | G16: 28.48965517 | H16: 14.10517241 | I16: 28.1637931 | J16: 14.01206897 | K16: 27.51206897 | L16: 13.75603448 | M16: 26.86034483 | N16: 13.5 | O16: 24.81206897 | P16: 12.70862069 | R16: 1.183908046 | S16: 1.185823755 | T16: 1.172413793 | U16: 1.159003831 | V16: 1.132183908 | W16: 1.105363985 | X16: 1.021072797 | Y16: 0.4902912621 | Z16: 0.49273021 | AA16: 0.4950980392 | AB16: 0.4975206612 | AC16: 0.5 | AD16: 0.5025996534 | AE16: 0.512195122 | AF16: 0.8933333333 | AG16: 0.9066666667 | AH16: 0.9066666667 | AI16: 0.9066666667 | AJ16: 0.8933333333 | AK16: 0.88 | AL16: 0.8133333333 | AM16: =Y16*C16+($A$4-80)*AF16*$A$16/1000 -> 14.10517241 | AN16: =Z16*E16+($A$4-80)*AG16*$A$16/1000 -> 14.19827586 | AO16: =AA16*G16+($A$4-80)*AH16*$A$16/1000 -> 14.10517241 | AP16: =AB16*I16+($A$4-80)*AI16*$A$16/1000 -> 14.01206897 | AQ16: =AC16*K16+($A$4-80)*AJ16*$A$16/1000 -> 13.75603448 | AR16: =AD16*M16+($A$4-80)*AK16*$A$16/1000 -> 13.5 | AS16: =AE16*O16+($A$4-80)*AL16*$A$16/1000 -> 12.70862069
B17: 69.5 | C17: 27.90775862 | D17: 15.92068966 | E17: 27.675 | F17: 15.92068966 | G17: 27.29094828 | H17: 15.80431034 | I17: 26.90689655 | J17: 15.68793103 | K17: 26.27844828 | L17: 15.43189655 | M17: 25.65 | N17: 15.17586207 | O17: 23.88103448 | P17: 14.38448276 | R17: 1.148467433 | S17: 1.138888889 | T17: 1.123084291 | U17: 1.107279693 | V17: 1.081417625 | W17: 1.055555556 | X17: 0.9827586207 | Y17: 0.5704753962 | Z17: 0.5752733389 | AA17: 0.5791044776 | AB17: 0.5830449827 | AC17: 0.5872453499 | AD17: 0.5916515426 | AE17: 0.6023391813 | AF17: 0.8933333333 | AG17: 0.9066666667 | AH17: 0.9066666667 | AI17: 0.9066666667 | AJ17: 0.8933333333 | AK17: 0.88 | AL17: 0.8133333333 | AM17: =Y17*C17+($A$4-80)*AF17*$A$16/1000 -> 15.92068966 | AN17: =Z17*E17+($A$4-80)*AG17*$A$16/1000 -> 15.92068966 | AO17: =AA17*G17+($A$4-80)*AH17*$A$16/1000 -> 15.80431034 | AP17: =AB17*I17+($A$4-80)*AI17*$A$16/1000 -> 15.68793103 | AQ17: =AC17*K17+($A$4-80)*AJ17*$A$16/1000 -> 15.43189655 | AR17: =AD17*M17+($A$4-80)*AK17*$A$16/1000 -> 15.17586207 | AS17: =AE17*O17+($A$4-80)*AL17*$A$16/1000 -> 14.38448276
B18: 67 | C18: 27.04655172 | D18: 17.7362069 | E18: 26.53448276 | F18: 17.64310345 | G18: 26.09224138 | H18: 17.50344828 | I18: 25.65 | J18: 17.3637931 | K18: 25.04482759 | L18: 17.10775862 | M18: 24.43965517 | N18: 16.85172414 | O18: 22.95 | P18: 16.06034483 | R18: 1.11302682 | S18: 1.091954023 | T18: 1.073754789 | U18: 1.055555556 | V18: 1.030651341 | W18: 1.005747126 | X18: 0.9444444444 | Y18: 0.6557659208 | Z18: 0.6649122807 | AA18: 0.6708296164 | AB18: 0.6769509982 | AC18: 0.6830855019 | AD18: 0.6895238095 | AE18: 0.6997971602 | AF18: 0.8933333333 | AG18: 0.9066666667 | AH18: 0.9066666667 | AI18: 0.9066666667 | AJ18: 0.8933333333 | AK18: 0.88 | AL18: 0.8133333333 | AM18: =Y18*C18+($A$4-80)*AF18*$A$16/1000 -> 17.7362069 | AN18: =Z18*E18+($A$4-80)*AG18*$A$16/1000 -> 17.64310345 | AO18: =AA18*G18+($A$4-80)*AH18*$A$16/1000 -> 17.50344828 | AP18: =AB18*I18+($A$4-80)*AI18*$A$16/1000 -> 17.3637931 | AQ18: =AC18*K18+($A$4-80)*AJ18*$A$16/1000 -> 17.10775862 | AR18: =AD18*M18+($A$4-80)*AK18*$A$16/1000 -> 16.85172414 | AS18: =AE18*O18+($A$4-80)*AL18*$A$16/1000 -> 16.06034483
B19: 62 | C19: 25.8362069 | D19: 21.83275862 | E19: 24.76551724 | F19: 21.32068966 | G19: 24.16034483 | H19: 21.01810345 | I19: 23.55517241 | J19: 20.71551724 | K19: 22.90344828 | L19: 20.36637931 | M19: 22.25172414 | N19: 20.01724138 | O19: 20.85517241 | P19: 19.13275862 | R19: 1.063218391 | S19: 1.019157088 | T19: 0.9942528736 | U19: 0.969348659 | V19: 0.9425287356 | W19: 0.9157088123 | X19: 0.8582375479 | Y19: 0.845045045 | Z19: 0.8609022556 | AA19: 0.8699421965 | AB19: 0.8794466403 | AC19: 0.8892276423 | AD19: 0.89958159 | AE19: 0.9174107143 | AF19: 0.8933333333 | AG19: 0.9066666667 | AH19: 0.9066666667 | AI19: 0.9066666667 | AJ19: 0.8933333333 | AK19: 0.88 | AL19: 0.8133333333 | AM19: =Y19*C19+($A$4-80)*AF19*$A$16/1000 -> 21.83275862 | AN19: =Z19*E19+($A$4-80)*AG19*$A$16/1000 -> 21.32068966 | AO19: =AA19*G19+($A$4-80)*AH19*$A$16/1000 -> 21.01810345 | AP19: =AB19*I19+($A$4-80)*AI19*$A$16/1000 -> 20.71551724 | AQ19: =AC19*K19+($A$4-80)*AJ19*$A$16/1000 -> 20.36637931 | AR19: =AD19*M19+($A$4-80)*AK19*$A$16/1000 -> 20.01724138 | AS19: =AE19*O19+($A$4-80)*AL19*$A$16/1000 -> 19.13275862

Sheet PSH4BG_60 (hidden)
A2: CSA4BF_60
A3: Evaporator Air | C3: Condenser Entering Air Temperature ˚F
A4: 80 | B4: °F DB | C4: 65 | E4: 75 | G4: 80 | I4: 85 | K4: 90 | M4: 95 | O4: 105
A5: CFM | B5: EWB† ˚F | C5: Capacity Mbtuh | E5: Capacity Mbtuh | G5: Capacity Mbtuh | I5: Capacity Mbtuh | K5: Capacity Mbtuh | M5: Capacity Mbtuh | O5: Capacity Mbtuh
C6: Total | D6: Sens. | E6: Total | F6: Sens. | G6: Total | H6: Sens. | I6: Total | J6: Sens. | K6: Total | L6: Sens. | M6: Total | N6: Sens. | O6: Total | P6: Sens.
R7: Total Factors | Y7: Sens. % | AF7: IDB Adj | AM7: Sens Calc
A8: 1350 | B8: 72 | C8: =R8*$M$14 -> 27.20377358 | D8: =IF(AM8>C8,C8,AM8) -> 12.37924528 | E8: =S8*$M$14 -> 27.28018868 | F8: =IF(AN8>E8,E8,AN8) -> 12.57028302 | G8: =T8*$M$14 -> 27.01273585 | H8: =IF(AO8>G8,G8,AO8) -> 12.5129717 | I8: =U8*$M$14 -> 26.74528302 | J8: =IF(AP8>I8,I8,AP8) -> 12.45566038 | K8: =V8*$M$14 -> 26.19127358 | L8: =IF(AQ8>K8,K8,AQ8) -> 12.24551887 | M8: =W8*$M$14 -> 25.63726415 | N8: =IF(AR8>M8,M8,AR8) -> 12.03537736 | O8: =X8*$M$14 -> 23.91792453 | P8: =IF(AS8>O8,O8,AS8) -> 11.34764151 | R8: 1.119496855 | S8: 1.122641509 | T8: 1.11163522 | U8: 1.100628931 | V8: 1.077830189 | W8: 1.055031447 | X8: 0.9842767296 | Y8: 0.4550561798 | Z8: 0.4607843137 | AA8: 0.4632248939 | AB8: 0.4657142857 | AC8: 0.4675419402 | AD8: 0.4694485842 | AE8: 0.4744408946 | AF8: 1.007407407 | AG8: 0.962962963 | AH8: 0.9481481481 | AI8: 0.9333333333 | AJ8: 0.9259259259 | AK8: 0.9185185185 | AL8: 0.9481481481 | AM8: =Y8*C8+($A$4-80)*AF8*$A$8/1000 -> 12.37924528 | AN8: =Z8*E8+($A$4-80)*AG8*$A$8/1000 -> 12.57028302 | AO8: =AA8*G8+($A$4-80)*AH8*$A$8/1000 -> 12.5129717 | AP8: =AB8*I8+($A$4-80)*AI8*$A$8/1000 -> 12.45566038 | AQ8: =AC8*K8+($A$4-80)*AJ8*$A$8/1000 -> 12.24551887 | AR8: =AD8*M8+($A$4-80)*AK8*$A$8/1000 -> 12.03537736 | AS8: =AE8*O8+($A$4-80)*AL8*$A$8/1000 -> 11.34764151
B9: 69.5 | C9: =R9*$M$14 -> 26.49693396 | D9: 14.21320755 | E9: =S9*$M$14 -> 26.49693396 | F9: 14.40424528 | G9: =T9*$M$14 -> 26.20082547 | H9: 14.33738208 | I9: =U9*$M$14 -> 25.90471698 | J9: 14.27051887 | K9: =V9*$M$14 -> 25.32205189 | L9: 14.02216981 | M9: =W9*$M$14 -> 24.73938679 | N9: 13.77382075 | O9: =X9*$M$14 -> 22.96273585 | P9: 12.93325472 | R9: 1.090408805 | S9: 1.090408805 | T9: 1.07822327 | U9: 1.066037736 | V9: 1.042059748 | W9: 1.018081761 | X9: 0.9449685535 | Y9: 0.5364095169 | Z9: 0.5436193223 | AA9: 0.5472110828 | AB9: 0.5508849558 | AC9: 0.5537533006 | AD9: 0.5567567568 | AE9: 0.5632279534 | AF9: 1.007407407 | AG9: 0.962962963 | AH9: 0.9481481481 | AI9: 0.9333333333 | AJ9: 0.9259259259 | AK9: 0.9185185185 | AL9: 0.9481481481 | AM9: =Y9*C9+($A$4-80)*AF9*$A$8/1000 -> 14.21320755 | AN9: =Z9*E9+($A$4-80)*AG9*$A$8/1000 -> 14.40424528 | AO9: =AA9*G9+($A$4-80)*AH9*$A$8/1000 -> 14.33738208 | AP9: =AB9*I9+($A$4-80)*AI9*$A$8/1000 -> 14.27051887 | AQ9: =AC9*K9+($A$4-80)*AJ9*$A$8/1000 -> 14.02216981 | AR9: =AD9*M9+($A$4-80)*AK9*$A$8/1000 -> 13.77382075 | AS9: =AE9*O9+($A$4-80)*AL9*$A$8/1000 -> 12.93325472
B10: 67 | C10: 25.79009434 | D10: 16.04716981 | E10: 25.71367925 | F10: 16.23820755 | G10: 25.38891509 | H10: 16.16179245 | I10: 25.06415094 | J10: 16.08537736 | K10: 24.45283019 | L10: 15.79882075 | M10: 23.84150943 | N10: 15.51226415 | O10: 22.00754717 | P10: 14.51886792 | R10: 1.061320755 | S10: 1.058176101 | T10: 1.044811321 | U10: 1.031446541 | V10: 1.006289308 | W10: 0.9811320755 | X10: 0.9056603774 | Y10: 0.6222222222 | Z10: 0.6315007429 | AA10: 0.6365688488 | AB10: 0.6417682927 | AC10: 0.64609375 | AD10: 0.6506410256 | AE10: 0.6597222222 | AF10: 1.007407407 | AG10: 0.962962963 | AH10: 0.9481481481 | AI10: 0.9333333333 | AJ10: 0.9259259259 | AK10: 0.9185185185 | AL10: 0.9481481481 | AM10: =Y10*C10+($A$4-80)*AF10*$A$8/1000 -> 16.04716981 | AN10: =Z10*E10+($A$4-80)*AG10*$A$8/1000 -> 16.23820755 | AO10: =AA10*G10+($A$4-80)*AH10*$A$8/1000 -> 16.16179245 | AP10: =AB10*I10+($A$4-80)*AI10*$A$8/1000 -> 16.08537736 | AQ10: =AC10*K10+($A$4-80)*AJ10*$A$8/1000 -> 15.79882075 | AR10: =AD10*M10+($A$4-80)*AK10*$A$8/1000 -> 15.51226415 | AS10: =AE10*O10+($A$4-80)*AL10*$A$8/1000 -> 14.51886792
B11: 62 | C11: 23.68867925 | D11: 18.8745283 | E11: 22.65707547 | F11: 18.33962264 | G11: 22.14127358 | H11: 18.07216981 | I11: 21.6254717 | J11: 17.80471698 | K11: 21.09056604 | L11: 17.51816038 | M11: 20.55566038 | N11: 17.23160377 | O11: 19.44764151 | P11: 16.65849057 | R11: 0.9748427673 | S11: 0.9323899371 | T11: 0.911163522 | U11: 0.8899371069 | V11: 0.8679245283 | W11: 0.8459119497 | X11: 0.8003144654 | Y11: 0.7967741935 | Z11: 0.8094435076 | AA11: 0.8162208801 | AB11: 0.8233215548 | AC11: 0.830615942 | AD11: 0.8382899628 | AE11: 0.8565815324 | AF11: 1.007407407 | AG11: 0.962962963 | AH11: 0.9481481481 | AI11: 0.9333333333 | AJ11: 0.9259259259 | AK11: 0.9185185185 | AL11: 0.9481481481 | AM11: =Y11*C11+($A$4-80)*AF11*$A$8/1000 -> 18.8745283 | AN11: =Z11*E11+($A$4-80)*AG11*$A$8/1000 -> 18.33962264 | AO11: =AA11*G11+($A$4-80)*AH11*$A$8/1000 -> 18.07216981 | AP11: =AB11*I11+($A$4-80)*AI11*$A$8/1000 -> 17.80471698 | AQ11: =AC11*K11+($A$4-80)*AJ11*$A$8/1000 -> 17.51816038 | AR11: =AD11*M11+($A$4-80)*AK11*$A$8/1000 -> 17.23160377 | AS11: =AE11*O11+($A$4-80)*AL11*$A$8/1000 -> 16.65849057
A12: 1500 | B12: 72 | C12: 27.39481132 | D12: 13.02877358 | E12: 27.54764151 | F12: 12.99056604 | G12: 27.31839623 | H12: 12.89504717 | I12: 27.08915094 | J12: 12.7995283 | K12: 26.55424528 | L12: 12.60849057 | M12: 26.01933962 | N12: 12.41745283 | O12: 24.3 | P12: 11.80613208 | R12: 1.127358491 | S12: 1.133647799 | T12: 1.124213836 | U12: 1.114779874 | V12: 1.092767296 | W12: 1.070754717 | X12: 1 | Y12: 0.4755927476 | Z12: 0.4715672677 | AA12: 0.472027972 | AB12: 0.4724964739 | AC12: 0.4748201439 | AD12: 0.4772393539 | AE12: 0.4858490566 | AF12: 1.026666667 | AG12: 0.9733333333 | AH12: 0.96 | AI12: 0.9466666667 | AJ12: 0.94 | AK12: 0.9333333333 | AL12: 0.9466666667 | AM12: =Y12*C12+($A$4-80)*AF12*$A$12/1000 -> 13.02877358 | AN12: =Z12*E12+($A$4-80)*AG12*$A$12/1000 -> 12.99056604 | AO12: =AA12*G12+($A$4-80)*AH12*$A$12/1000 -> 12.89504717 | AP12: =AB12*I12+($A$4-80)*AI12*$A$12/1000 -> 12.7995283 | AQ12: =AC12*K12+($A$4-80)*AJ12*$A$12/1000 -> 12.60849057 | AR12: =AD12*M12+($A$4-80)*AK12*$A$12/1000 -> 12.41745283 | AS12: =AE12*O12+($A$4-80)*AL12*$A$12/1000 -> 11.80613208
B13: 69.5 | C13: 26.78349057 | D13: 14.80542453 | E13: 26.85990566 | F13: 14.84363208 | G13: 26.59245283 | H13: 14.74811321 | I13: 26.325 | J13: 14.65259434 | K13: 25.74233491 | L13: 14.42334906 | M13: 25.15966981 | N13: 14.19410377 | O13: 23.38301887 | P13: 13.46816038 | R13: 1.102201258 | S13: 1.105345912 | T13: 1.094339623 | U13: 1.083333333 | V13: 1.059355346 | W13: 1.035377358 | X13: 0.9622641509 | Y13: 0.5527817404 | Z13: 0.5526315789 | AA13: 0.5545977011 | AB13: 0.5566037736 | AC13: 0.560296846 | AD13: 0.5641609719 | AE13: 0.5759803922 | AF13: 1.026666667 | AG13: 0.9733333333 | AH13: 0.96 | AI13: 0.9466666667 | AJ13: 0.94 | AK13: 0.9333333333 | AL13: 0.9466666667 | AM13: =Y13*C13+($A$4-80)*AF13*$A$12/1000 -> 14.80542453 | AN13: =Z13*E13+($A$4-80)*AG13*$A$12/1000 -> 14.84363208 | AO13: =AA13*G13+($A$4-80)*AH13*$A$12/1000 -> 14.74811321 | AP13: =AB13*I13+($A$4-80)*AI13*$A$12/1000 -> 14.65259434 | AQ13: =AC13*K13+($A$4-80)*AJ13*$A$12/1000 -> 14.42334906 | AR13: =AD13*M13+($A$4-80)*AK13*$A$12/1000 -> 14.19410377 | AS13: =AE13*O13+($A$4-80)*AL13*$A$12/1000 -> 13.46816038
B14: 67 | C14: 26.17216981 | D14: 16.58207547 | E14: 26.17216981 | F14: 16.69669811 | G14: 25.86650943 | H14: 16.60117925 | I14: 25.56084906 | J14: 16.50566038 | K14: 24.93042453 | L14: 16.23820755 | M14: 24.3 | N14: 15.97075472 | O14: 22.46603774 | P14: 15.13018868 | R14: 1.077044025 | S14: 1.077044025 | T14: 1.064465409 | U14: 1.051886792 | V14: 1.025943396 | W14: 1 | X14: 0.9245283019 | Y14: 0.6335766423 | Z14: 0.6379562044 | AA14: 0.6418020679 | AB14: 0.6457399103 | AC14: 0.6513409962 | AD14: 0.6572327044 | AE14: 0.6734693878 | AF14: 1.026666667 | AG14: 0.9733333333 | AH14: 0.96 | AI14: 0.9466666667 | AJ14: 0.94 | AK14: 0.9333333333 | AL14: 0.9466666667 | AM14: =Y14*C14+($A$4-80)*AF14*$A$12/1000 -> 16.58207547 | AN14: =Z14*E14+($A$4-80)*AG14*$A$12/1000 -> 16.69669811 | AO14: =AA14*G14+($A$4-80)*AH14*$A$12/1000 -> 16.60117925 | AP14: =AB14*I14+($A$4-80)*AI14*$A$12/1000 -> 16.50566038 | AQ14: =AC14*K14+($A$4-80)*AJ14*$A$12/1000 -> 16.23820755 | AR14: =AD14*M14+($A$4-80)*AK14*$A$12/1000 -> 15.97075472 | AS14: =AE14*O14+($A$4-80)*AL14*$A$12/1000 -> 15.13018868
B15: 62 | C15: 24.14716981 | D15: 19.79150943 | E15: 23.15377358 | F15: 19.29481132 | G15: 22.61886792 | H15: 19.04646226 | I15: 22.08396226 | J15: 18.79811321 | K15: 21.52995283 | L15: 18.5115566 | M15: =W15*$M$14 -> 20.9759434 | N15: 18.225 | O15: 19.79150943 | P15: 17.5754717 | R15: 0.9937106918 | S15: 0.9528301887 | T15: 0.9308176101 | U15: 0.9088050314 | V15: 0.8860062893 | W15: 0.8632075472 | X15: 0.8144654088 | Y15: 0.8196202532 | Z15: 0.8333333333 | AA15: 0.8420608108 | AB15: 0.8512110727 | AC15: 0.8598047915 | AD15: 0.868852459 | AE15: 0.888030888 | AF15: 1.026666667 | AG15: 0.9733333333 | AH15: 0.96 | AI15: 0.9466666667 | AJ15: 0.94 | AK15: 0.9333333333 | AL15: 0.9466666667 | AM15: =Y15*C15+($A$4-80)*AF15*$A$12/1000 -> 19.79150943 | AN15: =Z15*E15+($A$4-80)*AG15*$A$12/1000 -> 19.29481132 | AO15: =AA15*G15+($A$4-80)*AH15*$A$12/1000 -> 19.04646226 | AP15: =AB15*I15+($A$4-80)*AI15*$A$12/1000 -> 18.79811321 | AQ15: =AC15*K15+($A$4-80)*AJ15*$A$12/1000 -> 18.5115566 | AR15: =AD15*M15+($A$4-80)*AK15*$A$12/1000 -> 18.225 | AS15: =AE15*O15+($A$4-80)*AL15*$A$12/1000 -> 17.5754717
A16: 1650 | B16: 72 | C16: 27.54764151 | D16: 13.29622642 | E16: 27.81509434 | F16: 13.37264151 | G16: 27.6240566 | H16: 13.31533019 | I16: 27.43301887 | J16: 13.25801887 | K16: 26.91721698 | L16: 13.08608491 | M16: 26.40141509 | N16: 12.91415094 | O16: 24.68207547 | P16: 12.30283019 | R16: 1.133647799 | S16: 1.144654088 | T16: 1.136792453 | U16: 1.128930818 | V16: 1.107704403 | W16: 1.086477987 | X16: 1.01572327 | Y16: 0.4826629681 | Z16: 0.4807692308 | AA16: 0.4820193638 | AB16: 0.4832869081 | AC16: 0.4861603974 | AD16: 0.489146165 | AE16: 0.4984520124 | AF16: 1.018181818 | AG16: 0.9818181818 | AH16: 0.9696969697 | AI16: 0.9575757576 | AJ16: 0.9515151515 | AK16: 0.9454545455 | AL16: 0.9333333333 | AM16: =Y16*C16+($A$4-80)*AF16*$A$16/1000 -> 13.29622642 | AN16: =Z16*E16+($A$4-80)*AG16*$A$16/1000 -> 13.37264151 | AO16: =AA16*G16+($A$4-80)*AH16*$A$16/1000 -> 13.31533019 | AP16: =AB16*I16+($A$4-80)*AI16*$A$16/1000 -> 13.25801887 | AQ16: =AC16*K16+($A$4-80)*AJ16*$A$16/1000 -> 13.08608491 | AR16: =AD16*M16+($A$4-80)*AK16*$A$16/1000 -> 12.91415094 | AS16: =AE16*O16+($A$4-80)*AL16*$A$16/1000 -> 12.30283019
B17: 69.5 | C17: 27.0509434 | D17: 15.28301887 | E17: 27.22287736 | F17: 15.41674528 | G17: 26.98408019 | H17: 15.34988208 | I17: 26.74528302 | J17: 15.28301887 | K17: 26.17216981 | L17: 15.06332547 | M17: 25.5990566 | N17: 14.84363208 | O17: 23.80330189 | P17: 14.07948113 | R17: 1.113207547 | S17: 1.120283019 | T17: 1.110455975 | U17: 1.100628931 | V17: 1.077044025 | W17: 1.053459119 | X17: 0.9795597484 | Y17: 0.5649717514 | Z17: 0.5663157895 | AA17: 0.5688495575 | AB17: 0.5714285714 | AC17: 0.5755474453 | AD17: 0.5798507463 | AE17: 0.5914927769 | AF17: 1.018181818 | AG17: 0.9818181818 | AH17: 0.9696969697 | AI17: 0.9575757576 | AJ17: 0.9515151515 | AK17: 0.9454545455 | AL17: 0.9333333333 | AM17: =Y17*C17+($A$4-80)*AF17*$A$16/1000 -> 15.28301887 | AN17: =Z17*E17+($A$4-80)*AG17*$A$16/1000 -> 15.41674528 | AO17: =AA17*G17+($A$4-80)*AH17*$A$16/1000 -> 15.34988208 | AP17: =AB17*I17+($A$4-80)*AI17*$A$16/1000 -> 15.28301887 | AQ17: =AC17*K17+($A$4-80)*AJ17*$A$16/1000 -> 15.06332547 | AR17: =AD17*M17+($A$4-80)*AK17*$A$16/1000 -> 14.84363208 | AS17: =AE17*O17+($A$4-80)*AL17*$A$16/1000 -> 14.07948113
B18: 67 | C18: 26.55424528 | D18: 17.26981132 | E18: 26.63066038 | F18: 17.46084906 | G18: 26.34410377 | H18: 17.38443396 | I18: 26.05754717 | J18: 17.30801887 | K18: 25.42712264 | L18: 17.04056604 | M18: 24.79669811 | N18: 16.77311321 | O18: 22.9245283 | P18: 15.85613208 | R18: 1.092767296 | S18: 1.09591195 | T18: 1.084119497 | U18: 1.072327044 | V18: 1.046383648 | W18: 1.020440252 | X18: 0.9433962264 | Y18: 0.6503597122 | Z18: 0.6556671449 | AA18: 0.6598984772 | AB18: 0.6642228739 | AC18: 0.6701728024 | AD18: 0.6764252696 | AE18: 0.6916666667 | AF18: 1.018181818 | AG18: 0.9818181818 | AH18: 0.9696969697 | AI18: 0.9575757576 | AJ18: 0.9515151515 | AK18: 0.9454545455 | AL18: 0.9333333333 | AM18: =Y18*C18+($A$4-80)*AF18*$A$16/1000 -> 17.26981132 | AN18: =Z18*E18+($A$4-80)*AG18*$A$16/1000 -> 17.46084906 | AO18: =AA18*G18+($A$4-80)*AH18*$A$16/1000 -> 17.38443396 | AP18: =AB18*I18+($A$4-80)*AI18*$A$16/1000 -> 17.30801887 | AQ18: =AC18*K18+($A$4-80)*AJ18*$A$16/1000 -> 17.04056604 | AR18: =AD18*M18+($A$4-80)*AK18*$A$16/1000 -> 16.77311321 | AS18: =AE18*O18+($A$4-80)*AL18*$A$16/1000 -> 15.85613208
B19: 62 | C19: 24.56745283 | D19: 20.70849057 | E19: 23.61226415 | F19: 20.28820755 | G19: 23.07735849 | H19: 20.03985849 | I19: 22.54245283 | J19: 19.79150943 | K19: 21.96933962 | L19: 19.50495283 | M19: 21.39622642 | N19: 19.21839623 | O19: 20.13537736 | P19: 18.49245283 | R19: 1.011006289 | S19: 0.9716981132 | T19: 0.9496855346 | U19: 0.927672956 | V19: 0.9040880503 | W19: 0.8805031447 | X19: 0.8286163522 | Y19: 0.8429237947 | Z19: 0.859223301 | AA19: 0.8683774834 | AB19: 0.8779661017 | AC19: 0.887826087 | AD19: 0.8982142857 | AE19: 0.9184060721 | AF19: 1.018181818 | AG19: 0.9818181818 | AH19: 0.9696969697 | AI19: 0.9575757576 | AJ19: 0.9515151515 | AK19: 0.9454545455 | AL19: 0.9333333333 | AM19: =Y19*C19+($A$4-80)*AF19*$A$16/1000 -> 20.70849057 | AN19: =Z19*E19+($A$4-80)*AG19*$A$16/1000 -> 20.28820755 | AO19: =AA19*G19+($A$4-80)*AH19*$A$16/1000 -> 20.03985849 | AP19: =AB19*I19+($A$4-80)*AI19*$A$16/1000 -> 19.79150943 | AQ19: =AC19*K19+($A$4-80)*AJ19*$A$16/1000 -> 19.50495283 | AR19: =AD19*M19+($A$4-80)*AK19*$A$16/1000 -> 19.21839623 | AS19: =AE19*O19+($A$4-80)*AL19*$A$16/1000 -> 18.49245283

Sheet Form (hidden)
C2: Select Maytag Condenser: | J2: Second Stage (Boost Speed C5) Cooling
C3: ADP Evaporator: | N3: 24
C4: Nominal Capacity: | E4: (Mbtuh) | L4: Condenser Entering Air Temperature: | N4: (°F) Dry Bulb, 65°F to 105°F
C5: AHRI Rated Capacity: | E5: (Mbtuh) @ 95 ˚F & 80/67 ˚F conditions | L5: Evaporator Air Flow (CFM): | O5: to
C6: Entering Evaporator Air (DB): | E6: (°F) Dry Bulb -- 80°F Standard | L6: Entering Evaporator Air (WB): | N6: (°F) Wet Bulb, 62°F to 72°F
N7: 48
N8: CFM
A14: Extended Ratings
F18: Maytag Condenser :
F19: ADP Evaporator:
F20: Condenser Entering Air Temperature: | H20: (°F) Dry Bulb, 65°F to 105°F
F21: Evaporator Air Flow: | H21: CFM
F22: Entering Evaporator Air (DB): | H22: (°F) Dry Bulb
F23: Entering Evaporator Air (WB): | H23: (°F) Wet Bulb, 62°F to 72°F
F24: AHRI Rated Capacity: | H24: (Mbtuh) @ 95 ˚F & 80/67 ˚F conditions
A26: Evaporator Air | C26: Condenser Entering Air Temperature ˚F
A27: 80 | B27: °F DB | C27: 65 | E27: 75 | G27: 80 | I27: 85 | K27: 90 | M27: 95 | O27: 105
A28: CFM | B28: EWB† ˚F | C28: Capacity Mbtuh | E28: Capacity Mbtuh | G28: Capacity Mbtuh | I28: Capacity Mbtuh | K28: Capacity Mbtuh | M28: Capacity Mbtuh | O28: Capacity Mbtuh
C29: Total | D29: Sens. | E29: Total | F29: Sens. | G29: Total | H29: Sens. | I29: Total | J29: Sens. | K29: Total | L29: Sens. | M29: Total | N29: Sens. | O29: Total | P29: Sens.
D44: Condenser Entering Air Temperature: | F44: (°F) Dry Bulb, 65°F to 105°F | J44: CAPACITY IN MBTUH UNDER SPECIFIC CONDITIONS LISTED
D45: Evaporator Air Flow: | F45: CFM | K45: TOTAL
D46: Entering Evaporator Air (WB): | F46: (°F) Wet Bulb, 62°F to 72°F | K46: SENSIBLE
J47: Second Stage (Boost Speed C5) Cooling
A48: Notes: | B48: † Entering Wet Bulb
B49: Extended ratings are not certified. They are calculated based upon typical condenser performance curves and are for engineering information only.
B50: When the required data fall between the published data, interpolation may be performed. Extrapolation is not an acceptable practice.
B51: Displayed sensible capacity has been adjusted based upon indoor DB. Sensible capacity will increase with higher indoor DB and decrease with lower indoor DB.
B52: The magnitude of the adjustment depends partially on evaporator air flow, with greater adjustment at higher CFM.
A53: Printed: | P53: M-19-A

Sheet Instructions (hidden)
B7: This spreadsheet generates capacity information for ADP rated matches at other than nominal conditions.
B8: The information is provided is not certified and is provided for engineering use only.
B10: The latest version will allways be available at: www.adpnow.com/extratings/
B12: In order to generate an extended rating, you will need the following information:
C13: Condenser model number
C14: ADP coil model number
C15: Nominal capacity
C16: Rated capacity (from AHRI database)
C17: Condenser entering air dry bulb temperature
C18: Indoor entering air dry bulb temperature
C19: Indoor entering air wet bulb temperature
C20: Indoor airflow
B22: Select the condenser series and nominal tonnage form the drop down lists.
B23: Enter the remaining information in the correct cells. Note there are limits on the range of values allowed.
B24: Click on "Calculate" to calculate the extended ratings.
B25: The table will show capacities for various conditions. The capacities at the specific design point are
B26: at the bottom of the page.
B27: From this point you may:
C28: Click "Clear" to clear the form and start over.
C29: Click "Print" to print a copy of the data.
C30: Click "Copy" to copy the data to a new spreadsheet and save it in the same directory.
B32: Notes: | C32: Displayed sensible capacity has been adjusted based upon indoor DB. Sensible capacity will
C33: increase with higher indoor DB and decrease with lower indoor DB. The magnitude of the
C34: adjustment depends partially on evaporator air flow, with greater adjustment at higher CFM.
B36: Versions: | C36: M-14-A | D36: 2014-05-27 | E36: Initial public release
C37: M-15-A | D37: 2015-01-31 | E37: Renewed date key through 2015
C38: M-16-A | D38: 2016-03-22 | E38: Renewed date key through 2016
C39: M-19-A | D39: 2019-05-20 | E39: New Version

Sheet Prompt
B6: In order to use this spreadsheet,
B7: Please enable Macros in your security settings.
B9: Enabling Macros in Excel 2007
B10: 1. In Excel, click the Office button in the upper left corner of the screen.
B11: 2. Click the "Excel Options" button in the lower right.
B12: 3. Click the "Trust Center" button on the left. Then, at the bottom right, select "Trust Center Settings" as shown below.
B13: 4. In the next window, select "Macro Settings," then select the radio button for "Disable all macros with notification."
B14: 5. When openning this spreadsheet, you will see a warning like this in the menu bar:
B17: 6. Select "Enable this content" and click "Okay". The spreadsheet will now be functional.

Sheet Sheet1 (hidden)
